OrganisationNameLabel,OrganisationURI,EffectiveDate,Directorate/ServiceWhereExpenditureIncurred,ServiceCategoryLabel,ServiceCategoryURI,Supplier,SupplierRegisteredCompany Number,PaymentDate,TransactionNumber,NetAmount,IrrecoverableVAT,PurposeOfSpend,ProcurementClassification:ProclassLabel,ProcrementClassification:ProClassCode
South Lakeland District Council,http://opendatacommunities.org/id/district-council/south-lakeland,43951,Case Management People,Housing Services,http://opendatacommunities.org/def/concept/finance/sercop/objective/108,Windermere Park,,17/04/2020,101554,250,0,Accommodation 31/03/2020 - 02/04/2020,250000,Housing
South Lakeland District Council,http://opendatacommunities.org/id/district-council/south-lakeland,43951,Case Management People,Housing Services,http://opendatacommunities.org/def/concept/finance/sercop/objective/108,Windermere Park,,17/04/2020,101557,250,0,Accommodation 31/03/2020 - 02/04/2020,250000,Housing
South Lakeland District Council,http://opendatacommunities.org/id/district-council/south-lakeland,43951,Case Management People,Housing Services,,Windermere Park,,23/04/2020,103976,250,0,,250000,Housing
South Lakeland District Council,http://opendatacommunities.org/id/district-council/south-lakeland,43951,Business Support Community Services,Cultural Environmental Regulatory & Planning Services,,TPS Preston,,27/04/2020,104001,251.23,0,,381400,Vehicle Mgt Maintenance
South Lakeland District Council,http://opendatacommunities.org/id/district-council/south-lakeland,43951,Case Management Account Mgmt,Central Services,http://opendatacommunities.org/def/concept/finance/sercop/objective/102,ADECCO UK LIMITED,593232,08/04/2020,95172,254.72,0, Permanent Employment Charges,261400,HR Temporary & Agency Staff
South Lakeland District Council,http://opendatacommunities.org/id/district-council/south-lakeland,43951,ICT Group,Central Services,http://opendatacommunities.org/def/concept/finance/sercop/objective/102,IT PROFESSIONAL SERVICES (ITPS),,17/04/2020,99093,258.79,0,500mb internet,279999,ICT Not Elsewhere Classified
South Lakeland District Council,http://opendatacommunities.org/id/district-council/south-lakeland,43951,Business Support Community Services,Cultural Environmental Regulatory & Planning Services,,DENNIS EAGLE LTD,3794455,22/04/2020,103110,259.35,0,,381300,Vehicle Mgt Industrial
South Lakeland District Council,http://opendatacommunities.org/id/district-council/south-lakeland,43951,Support Services,Central Services,,THOMSON REUTERS (PROFESSIONAL) UK LTD,1679046,30/04/2020,104264,265,0,,202100,Financial Services Subscriptions
South Lakeland District Council,http://opendatacommunities.org/id/district-council/south-lakeland,43951,Business Support Community Services,Cultural Environmental Regulatory & Planning Services,http://opendatacommunities.org/def/concept/finance/sercop/objective/104,ARCO LIMITED,133804,03/04/2020,94337,273.47,0,Cleaning materials,141100,Clothing Protective
South Lakeland District Council,http://opendatacommunities.org/id/district-council/south-lakeland,43951,Business Support Community Services,Cultural Environmental Regulatory & Planning Services,,HAKO MACHINES LIMITED,1414225,22/04/2020,103122,274.38,0,,131000,Cleaning & Janitorial Cleaning Materials
South Lakeland District Council,http://opendatacommunities.org/id/district-council/south-lakeland,43951,Case Management Account Mgmt,Cultural Environmental Regulatory & Planning Services,http://opendatacommunities.org/def/concept/finance/sercop/objective/104,CONTINENTAL LANDSCAPES LTD,2108452,03/04/2020,93935,275,0,Supply and lay 50 rolls of turf to,391310,Construction Open Spaces Construction
South Lakeland District Council,http://opendatacommunities.org/id/district-council/south-lakeland,43951,Business Support Community Services,Cultural Environmental Regulatory & Planning Services,,CUMBRIA TRUCK CENTRE LTD,4298488,30/04/2020,104251,276.23,0,,381300,Vehicle Mgt Industrial
South Lakeland District Council,http://opendatacommunities.org/id/district-council/south-lakeland,43951,Case Management People,Housing Services,http://opendatacommunities.org/def/concept/finance/sercop/objective/108,Jane Harris,,06/04/2020,94361,276.26,0,Reimbursement for increased insurance,250000,Housing
South Lakeland District Council,http://opendatacommunities.org/id/district-council/south-lakeland,43951,Business Support Community Services,Cultural Environmental Regulatory & Planning Services,http://opendatacommunities.org/def/concept/finance/sercop/objective/104,LANCASHIRE DAF,,03/04/2020,94327,276.77,0,Parts,381400,Vehicle Mgt Maintenance
South Lakeland District Council,http://opendatacommunities.org/id/district-council/south-lakeland,43951,Support Services,External Trading Accounts,,Ulverston Properties Limited,,30/04/2020,104700,281.67,0,,190000,Facilities & Management Services
South Lakeland District Council,http://opendatacommunities.org/id/district-council/south-lakeland,43951,Case Management Account Mgmt,Central Services,,CAPITA BUSINESS SERVICES LTD,2299747,20/04/2020,102558,282.35,0,,261500,HR Training & Conferences
South Lakeland District Council,http://opendatacommunities.org/id/district-council/south-lakeland,43951,Business Support Community Services,Cultural Environmental Regulatory & Planning Services,http://opendatacommunities.org/def/concept/finance/sercop/objective/104,DENNIS EAGLE LTD,3794455,03/04/2020,94042,284.94,0,Parts,381300,Vehicle Mgt Industrial
South Lakeland District Council,http://opendatacommunities.org/id/district-council/south-lakeland,43951,Business Support Community Services,Cultural Environmental Regulatory & Planning Services,http://opendatacommunities.org/def/concept/finance/sercop/objective/104,GARWOOD EUROPE LTD,4333504,08/04/2020,93993,288,0,Ram,182011,Environment Waste Management Consumables
South Lakeland District Council,http://opendatacommunities.org/id/district-council/south-lakeland,43951,Case Management People,Housing Services,,Ashberry Recruitment,7202591,27/04/2020,104009,296.64,0,,261300,HR Recruitment & Assessment
South Lakeland District Council,http://opendatacommunities.org/id/district-council/south-lakeland,43951,Revenues and Benefits,Central Services,http://opendatacommunities.org/def/concept/finance/sercop/objective/102,CAPITA BUSINESS SERVICES LTD,2299747,06/04/2020,94724,300,0,Benefits Subsidy Webinar 20.03.20,261500,HR Training & Conferences
South Lakeland District Council,http://opendatacommunities.org/id/district-council/south-lakeland,43951,Case Management Regulatory,Cultural Environmental Regulatory & Planning Services,http://opendatacommunities.org/def/concept/finance/sercop/objective/104,Planning Jungle Ltd,7854370,14/04/2020,97527,300,0,ANNUAL 1 YEAR MEMBERSHIP FOR PLANNING,202100,Financial Services Subscriptions
South Lakeland District Council,http://opendatacommunities.org/id/district-council/south-lakeland,43951,Case Management People,Housing Services,,Windermere Park,,23/04/2020,103980,300,0,,250000,Housing
South Lakeland District Council,http://opendatacommunities.org/id/district-council/south-lakeland,43951,Case Management People,Housing Services,,Windermere Park,,23/04/2020,103981,300,0,,250000,Housing
South Lakeland District Council,http://opendatacommunities.org/id/district-council/south-lakeland,43951,Case Management People,Housing Services,,Windermere Park,,23/04/2020,103984,300,0,,250000,Housing
South Lakeland District Council,http://opendatacommunities.org/id/district-council/south-lakeland,43951,Case Management People,Housing Services,,Windermere Park,,23/04/2020,103985,300,0,,250000,Housing
South Lakeland District Council,http://opendatacommunities.org/id/district-council/south-lakeland,43951,Case Management People,Housing Services,,Windermere Park,,23/04/2020,103986,300,0,,250000,Housing
South Lakeland District Council,http://opendatacommunities.org/id/district-council/south-lakeland,43951,Case Management People,Housing Services,,Windermere Park,,23/04/2020,103987,300,0,,250000,Housing
South Lakeland District Council,http://opendatacommunities.org/id/district-council/south-lakeland,43951,Case Management People,Housing Services,,Windermere Park,,27/04/2020,104019,300,0,,250000,Housing
South Lakeland District Council,http://opendatacommunities.org/id/district-council/south-lakeland,43951,Business Support Community Services,Cultural Environmental Regulatory & Planning Services,,FAUN ZOELLER (UK) LTD,751804,22/04/2020,103132,303,0,,381400,Vehicle Mgt Maintenance
South Lakeland District Council,http://opendatacommunities.org/id/district-council/south-lakeland,43951,Business Support Community Services,Cultural Environmental Regulatory & Planning Services,,FAUN ZOELLER (UK) LTD,751804,22/04/2020,103133,303,0,,381400,Vehicle Mgt Maintenance
South Lakeland District Council,http://opendatacommunities.org/id/district-council/south-lakeland,43951,Business Support Community Services,Cultural Environmental Regulatory & Planning Services,,FAUN ZOELLER (UK) LTD,751804,22/04/2020,103048,304,0,,381400,Vehicle Mgt Maintenance
South Lakeland District Council,http://opendatacommunities.org/id/district-council/south-lakeland,43951,Support Services,Central Services,http://opendatacommunities.org/def/concept/finance/sercop/objective/102,BEVAN BRITTAN,OC309219,02/04/2020,94380,304.3,0,General Governance advice and,280000,Legal Services
South Lakeland District Council,http://opendatacommunities.org/id/district-council/south-lakeland,43951,Business Support Community Services,Cultural Environmental Regulatory & Planning Services,,HYDRAIR TRUCK & TRAILER PARTS LTD,,22/04/2020,103141,304.58,0,,381500,Vehicle Mgt Parts
South Lakeland District Council,http://opendatacommunities.org/id/district-council/south-lakeland,43951,Business Support Community Services,Cultural Environmental Regulatory & Planning Services,http://opendatacommunities.org/def/concept/finance/sercop/objective/104,ELIS UK LTD,228604,17/04/2020,95223,306.96,0,Workwear hire 01/04/20 - 31/03/21,161000,Domestic Goods Commercial
South Lakeland District Council,http://opendatacommunities.org/id/district-council/south-lakeland,43951,Support Services,Central Services,http://opendatacommunities.org/def/concept/finance/sercop/objective/102,THOMAS GRAHAM & SONS LTD,656879,17/04/2020,94725,308,0,Hand Towel Dispensers 99PD001 x 20,101400,Building General Materials
South Lakeland District Council,http://opendatacommunities.org/id/district-council/south-lakeland,43951,Business Support Community Services,Cultural Environmental Regulatory & Planning Services,,LANCASHIRE DAF,,22/04/2020,103106,310.41,0,,381400,Vehicle Mgt Maintenance
South Lakeland District Council,http://opendatacommunities.org/id/district-council/south-lakeland,43951,Business Support Community Services,Cultural Environmental Regulatory & Planning Services,,DENNIS EAGLE LTD,3794455,22/04/2020,103079,310.93,0,,381300,Vehicle Mgt Industrial
South Lakeland District Council,http://opendatacommunities.org/id/district-council/south-lakeland,43951,Case Management Regulatory,Cultural Environmental Regulatory & Planning Services,http://opendatacommunities.org/def/concept/finance/sercop/objective/104,RTPI SUBSCRIPTIONS,,20/04/2020,101562,315,0,RTPI PROFESIONAL MEMBERSHIP,391100,Construction Buildings
South Lakeland District Council,http://opendatacommunities.org/id/district-council/south-lakeland,43951,Business Support Community Services,Transport Planning Policy,http://opendatacommunities.org/def/concept/finance/sercop/objective/107,GREENCHEM SOLUTIONS LTD,5175801,06/04/2020,94720,330,0,Adblue repairs,189999,Environmental Services Not Elsewhere Cla
South Lakeland District Council,http://opendatacommunities.org/id/district-council/south-lakeland,43951,Support Services,Non-Service Payments,,BUSY BEES BENEFITS LTD,6758298,06/04/2020,95412,330,0,Chidl Care Vouchers 20/21,202100,Financial Services Subscriptions
South Lakeland District Council,http://opendatacommunities.org/id/district-council/south-lakeland,43951,Business Support Community Services,Cultural Environmental Regulatory & Planning Services,,ETS UK LIMITED,2588203,30/04/2020,103983,330,0,,381500,Vehicle Mgt Parts
South Lakeland District Council,http://opendatacommunities.org/id/district-council/south-lakeland,43951,Business Support Community Services,Cultural Environmental Regulatory & Planning Services,,DRIVELINE & HYDRAULIC ENGINEERING LTD,5527968,30/04/2020,104694,337.34,0,,391200,Construction Engineering
South Lakeland District Council,http://opendatacommunities.org/id/district-council/south-lakeland,43951,Business Support Community Services,Cultural Environmental Regulatory & Planning Services,http://opendatacommunities.org/def/concept/finance/sercop/objective/104,TPS Preston,,03/04/2020,94325,341.86,0,Parts,381400,Vehicle Mgt Maintenance
South Lakeland District Council,http://opendatacommunities.org/id/district-council/south-lakeland,43951,Case Management People,Housing Services,http://opendatacommunities.org/def/concept/finance/sercop/objective/108,Windermere Park,,17/04/2020,101558,350,0,Accommodation 31/03/2020 - 02/04/2020,250000,Housing
South Lakeland District Council,http://opendatacommunities.org/id/district-council/south-lakeland,43951,Case Management People,Housing Services,http://opendatacommunities.org/def/concept/finance/sercop/objective/108,Windermere Park,,17/04/2020,101560,350,0,Accommodation 31/03/2020 - 02/04/2020,250000,Housing
South Lakeland District Council,http://opendatacommunities.org/id/district-council/south-lakeland,43951,Case Management People,Housing Services,http://opendatacommunities.org/def/concept/finance/sercop/objective/108,Windermere Park,,17/04/2020,101561,350,0,Accommodation 31/03/2020 - 02/04/2020,250000,Housing
South Lakeland District Council,http://opendatacommunities.org/id/district-council/south-lakeland,43951,Case Management People,Housing Services,,Windermere Park,,23/04/2020,103977,350,0,,250000,Housing
South Lakeland District Council,http://opendatacommunities.org/id/district-council/south-lakeland,43951,Case Management People,Housing Services,,Windermere Park,,27/04/2020,104013,350,0,,250000,Housing
South Lakeland District Council,http://opendatacommunities.org/id/district-council/south-lakeland,43951,Case Management People,Housing Services,,Windermere Park,,27/04/2020,104014,350,0,,250000,Housing
South Lakeland District Council,http://opendatacommunities.org/id/district-council/south-lakeland,43951,Case Management People,Housing Services,,Windermere Park,,27/04/2020,104015,350,0,,250000,Housing
South Lakeland District Council,http://opendatacommunities.org/id/district-council/south-lakeland,43951,Case Management People,Housing Services,,Windermere Park,,27/04/2020,104016,350,0,,250000,Housing
South Lakeland District Council,http://opendatacommunities.org/id/district-council/south-lakeland,43951,Case Management People,Housing Services,,Windermere Park,,27/04/2020,104017,350,0,,250000,Housing
South Lakeland District Council,http://opendatacommunities.org/id/district-council/south-lakeland,43951,Case Management People,Housing Services,,Windermere Park,,27/04/2020,104018,350,0,,250000,Housing
South Lakeland District Council,http://opendatacommunities.org/id/district-council/south-lakeland,43951,Case Management People,Housing Services,,Windermere Park,,27/04/2020,104020,350,0,,250000,Housing
South Lakeland District Council,http://opendatacommunities.org/id/district-council/south-lakeland,43951,Case Management People,Housing Services,,Windermere Park,,27/04/2020,104021,350,0,,250000,Housing
South Lakeland District Council,http://opendatacommunities.org/id/district-council/south-lakeland,43951,Support Services,Central Services,http://opendatacommunities.org/def/concept/finance/sercop/objective/102,THOMAS GRAHAM & SONS LTD,656879,09/04/2020,95387,356.16,0,Deb 1000 Instant foam hand sanitiser 1,101400,Building General Materials
South Lakeland District Council,http://opendatacommunities.org/id/district-council/south-lakeland,43951,Business Support Community Services,Cultural Environmental Regulatory & Planning Services,,HYDRAIR TRUCK & TRAILER PARTS LTD,,30/04/2020,104252,359.39,0,,381500,Vehicle Mgt Parts
South Lakeland District Council,http://opendatacommunities.org/id/district-council/south-lakeland,43951,Business Support Community Services,Cultural Environmental Regulatory & Planning Services,http://opendatacommunities.org/def/concept/finance/sercop/objective/104,Southfield RCV Services,,03/04/2020,94040,360,0,Repairs,380000,Vehicle Management
South Lakeland District Council,http://opendatacommunities.org/id/district-council/south-lakeland,43951,Case Management People,Housing Services,http://opendatacommunities.org/def/concept/finance/sercop/objective/108,Linda Marshall,,08/04/2020,96189,360,0,Accommodation ,250000,Housing
South Lakeland District Council,http://opendatacommunities.org/id/district-council/south-lakeland,43951,Case Management People,Housing Services,http://opendatacommunities.org/def/concept/finance/sercop/objective/108,Linda Marshall,,06/04/2020,94359,372,0,Emergency accommodation,250000,Housing
South Lakeland District Council,http://opendatacommunities.org/id/district-council/south-lakeland,43951,Business Support Community Services,Cultural Environmental Regulatory & Planning Services,http://opendatacommunities.org/def/concept/finance/sercop/objective/104,GARWOOD EUROPE LTD,4333504,08/04/2020,96207,374.96,0,Parts,182011,Environment Waste Management Consumables
South Lakeland District Council,http://opendatacommunities.org/id/district-council/south-lakeland,43951,Case Management Account Mgmt,Highways & Transport Services,http://opendatacommunities.org/def/concept/finance/sercop/objective/107,METRIC GROUP LIMITED,2560839,20/04/2020,102089,375.25,0,Car park machine contract maintenance,359999,Street & Traffic Not Elsewhere Classifie
South Lakeland District Council,http://opendatacommunities.org/id/district-council/south-lakeland,43951,Case Management Account Mgmt,Highways & Transport Services,http://opendatacommunities.org/def/concept/finance/sercop/objective/107,METRIC GROUP LIMITED,2560839,20/04/2020,102089,375.25,0,Car park machine contract maintenance,359999,Street & Traffic Not Elsewhere Classifie
South Lakeland District Council,http://opendatacommunities.org/id/district-council/south-lakeland,43951,Case Management Account Mgmt,Highways & Transport Services,http://opendatacommunities.org/def/concept/finance/sercop/objective/107,METRIC GROUP LIMITED,2560839,20/04/2020,102089,375.25,0,Car park machine contract maintenance,359999,Street & Traffic Not Elsewhere Classifie
South Lakeland District Council,http://opendatacommunities.org/id/district-council/south-lakeland,43951,Business Support Community Services,Cultural Environmental Regulatory & Planning Services,,ARCO LIMITED,133804,22/04/2020,103128,383.22,0,,141100,Clothing Protective
South Lakeland District Council,http://opendatacommunities.org/id/district-council/south-lakeland,43951,Business Support Community Services,Cultural Environmental Regulatory & Planning Services,,DAVID BREAKS,,22/04/2020,103125,385,0,,381500,Vehicle Mgt Parts
South Lakeland District Council,http://opendatacommunities.org/id/district-council/south-lakeland,43951,Business Support Community Services,Cultural Environmental Regulatory & Planning Services,,Southfield RCV Services,,22/04/2020,103170,389.29,0,,380000,Vehicle Management
South Lakeland District Council,http://opendatacommunities.org/id/district-council/south-lakeland,43951,Support Services,Central Services,http://opendatacommunities.org/def/concept/finance/sercop/objective/102,Creditsafe Business Solutions Ltd,3836192,09/04/2020,97520,390,0,Creditsafe Searches 14.4.20 - 14.4.21,209999,Financial Services Not Elsewhere Classif
South Lakeland District Council,http://opendatacommunities.org/id/district-council/south-lakeland,43951,Environment and Housing,Housing Services,,GROWING CONCERNS LTD,,30/04/2020,104685,396,0,,391200,Construction Engineering
South Lakeland District Council,http://opendatacommunities.org/id/district-council/south-lakeland,43951,Revenues and Benefits,Central Services,http://opendatacommunities.org/def/concept/finance/sercop/objective/102,ALLPAY.NET LTD (NCR),6871069,01/04/2020,99081,398.98,0,2019-20 Internet Payment / bank charges,209999,Financial Services Not Elsewhere Classif
South Lakeland District Council,http://opendatacommunities.org/id/district-council/south-lakeland,43951,Case Management People,Housing Services,http://opendatacommunities.org/def/concept/finance/sercop/objective/108,Ashley Bennett,8672920,17/04/2020,102531,400,0,Monthly rent ,202000,Financial Services Rents
South Lakeland District Council,http://opendatacommunities.org/id/district-council/south-lakeland,43951,Business Support Community Services,Cultural Environmental Regulatory & Planning Services,,GREENCHEM SOLUTIONS LTD,5175801,22/04/2020,103112,400.25,0,,189999,Environmental Services Not Elsewhere Cla
South Lakeland District Council,http://opendatacommunities.org/id/district-council/south-lakeland,43951,Development Implementation,Cultural Environmental Regulatory & Planning Services,,WiFi Spark Ltd,,20/04/2020,102560,402.18,0,,271800,ICT Telecommunications Mobile
South Lakeland District Council,http://opendatacommunities.org/id/district-council/south-lakeland,43951,Business Support Community Services,Cultural Environmental Regulatory & Planning Services,,Southfield RCV Services,,22/04/2020,103164,405,0,,380000,Vehicle Management
South Lakeland District Council,http://opendatacommunities.org/id/district-council/south-lakeland,43951,Case Management People,Housing Services,http://opendatacommunities.org/def/concept/finance/sercop/objective/108,Callum Robinson,,17/04/2020,101537,415,0,Monthly rent ,250010,Housing Letting Agents
South Lakeland District Council,http://opendatacommunities.org/id/district-council/south-lakeland,43951,Case Management People,Housing Services,,Callum Robinson,,24/04/2020,104180,415,0,,250010,Housing Letting Agents
South Lakeland District Council,http://opendatacommunities.org/id/district-council/south-lakeland,43951,Development Implementation,Central Services,http://opendatacommunities.org/def/concept/finance/sercop/objective/102,J S Cleaning Services,,17/04/2020,95374,416,0,Cleaner for SLDC - April 2019 Onwards,131010,Cleaning & Janitorial Cleaning Materials
South Lakeland District Council,http://opendatacommunities.org/id/district-council/south-lakeland,43951,Business Support Community Services,Cultural Environmental Regulatory & Planning Services,http://opendatacommunities.org/def/concept/finance/sercop/objective/104,Enevo UK Ltd,9347391,08/04/2020,95404,416,0,Monthly subscriptions 2019/20,261517,ICT-Consultancy
South Lakeland District Council,http://opendatacommunities.org/id/district-council/south-lakeland,43951,Business Support Community Services,Cultural Environmental Regulatory & Planning Services,http://opendatacommunities.org/def/concept/finance/sercop/objective/104,Southfield RCV Services,,06/04/2020,95398,416.25,0,Repairs,380000,Vehicle Management
South Lakeland District Council,http://opendatacommunities.org/id/district-council/south-lakeland,43951,ICT Group,Central Services,http://opendatacommunities.org/def/concept/finance/sercop/objective/102,IT PROFESSIONAL SERVICES (ITPS),,20/04/2020,102439,420,0,(01539 720867) WLR3 Business Line,279999,ICT Not Elsewhere Classified
South Lakeland District Council,http://opendatacommunities.org/id/district-council/south-lakeland,43951,Business Support Community Services,Cultural Environmental Regulatory & Planning Services,,HYDRAIR TRUCK & TRAILER PARTS LTD,,22/04/2020,103047,431.88,0,,381500,Vehicle Mgt Parts
South Lakeland District Council,http://opendatacommunities.org/id/district-council/south-lakeland,43951,Business Support Community Services,Cultural Environmental Regulatory & Planning Services,http://opendatacommunities.org/def/concept/finance/sercop/objective/104,LANCASHIRE DAF,,03/04/2020,94329,437.89,0,Parts,381400,Vehicle Mgt Maintenance
South Lakeland District Council,http://opendatacommunities.org/id/district-council/south-lakeland,43951,Business Support Community Services,Cultural Environmental Regulatory & Planning Services,,ARCO LIMITED,133804,22/04/2020,103148,438.72,0,,141100,Clothing Protective
South Lakeland District Council,http://opendatacommunities.org/id/district-council/south-lakeland,43951,ICT Group,Central Services,,IT PROFESSIONAL SERVICES (ITPS),,30/04/2020,103058,444,0,,279999,ICT Not Elsewhere Classified
South Lakeland District Council,http://opendatacommunities.org/id/district-council/south-lakeland,43951,Business Support Community Services,Cultural Environmental Regulatory & Planning Services,,FAUN ZOELLER (UK) LTD,751804,22/04/2020,103120,454,0,,381400,Vehicle Mgt Maintenance
South Lakeland District Council,http://opendatacommunities.org/id/district-council/south-lakeland,43951,Locality,Central Services,http://opendatacommunities.org/def/concept/finance/sercop/objective/102,ARCO LIMITED,133804,22/04/2020,93972,454.16,0,10BG705 ( jacket),141100,Clothing Protective
South Lakeland District Council,http://opendatacommunities.org/id/district-council/south-lakeland,43951,Business Support Community Services,Cultural Environmental Regulatory & Planning Services,http://opendatacommunities.org/def/concept/finance/sercop/objective/104,ARCO LIMITED,133804,03/04/2020,94332,462,0,Cleaning materials,141100,Clothing Protective
South Lakeland District Council,http://opendatacommunities.org/id/district-council/south-lakeland,43951,Business Support Community Services,Cultural Environmental Regulatory & Planning Services,http://opendatacommunities.org/def/concept/finance/sercop/objective/104,ARCO LIMITED,133804,03/04/2020,94339,462,0,PPE 2019/20,141100,Clothing Protective
South Lakeland District Council,http://opendatacommunities.org/id/district-council/south-lakeland,43951,Support Services,Non-Service Payments,,COMPUTERSHARE VOUCHER SERVICES LTD,4968447,06/04/2020,95411,469.93,0,Child Care Vouchers 20/21,202100,Financial Services Subscriptions
South Lakeland District Council,http://opendatacommunities.org/id/district-council/south-lakeland,43951,Development Implementation,Cultural Environmental Regulatory & Planning Services,http://opendatacommunities.org/def/concept/finance/sercop/objective/104,DESIGNWORKS,,02/04/2020,94390,480,0,Kendal Futures Anual Report,191100,Facilities Design & Photography
South Lakeland District Council,http://opendatacommunities.org/id/district-council/south-lakeland,43951,Business Support Community Services,Cultural Environmental Regulatory & Planning Services,,CUMBRIA WASTE RECYCLING LTD,3162439,23/04/2020,102570,480,0,,182012,Environment Waste Management Recycling
South Lakeland District Council,http://opendatacommunities.org/id/district-council/south-lakeland,43951,ICT Group,Central Services,,DAISY COMMUNICATIONS LTD,4145329,30/04/2020,104387,481.65,0,,271700,ICT Telecommunications Fixed
South Lakeland District Council,http://opendatacommunities.org/id/district-council/south-lakeland,43951,Finance,Other Items,,Capita Secure Information Solutions Ltd,1593831,30/04/2020,104259,490,0,,271600,ICT Software Customised & Bespoke
South Lakeland District Council,http://opendatacommunities.org/id/district-council/south-lakeland,43951,Westmorland Centre Parking Office,Highways & Transport Services,http://opendatacommunities.org/def/concept/finance/sercop/objective/107,G&D CURRENCY TECH LTD,4376601,17/04/2020,99090,495,0,Maintenance support for 301 coin sorter,151200,Consultancy Efficiency
South Lakeland District Council,http://opendatacommunities.org/id/district-council/south-lakeland,43951,Development Management,Cultural Environmental Regulatory & Planning Services,http://opendatacommunities.org/def/concept/finance/sercop/objective/104,LAMBERT SMITH HAMPTON GROUP,2521225,03/04/2020,94037,500,0,"Viability Appraisal SL/2018/0311, Land",191700,Facilities Property Management
South Lakeland District Council,http://opendatacommunities.org/id/district-council/south-lakeland,43951,Support Services,Central Services,http://opendatacommunities.org/def/concept/finance/sercop/objective/102,GRANTS- MISCELLANEOUS,,08/04/2020,94047,500,0,Locality donation to help bring a mains,201700,Financial Services Grants
South Lakeland District Council,http://opendatacommunities.org/id/district-council/south-lakeland,43951,Case Management Account Mgmt,Central Services,http://opendatacommunities.org/def/concept/finance/sercop/objective/102,CFH Docmail Ltd,1716891,17/04/2020,97506,500,0,C Tax  Billing (Printing Costs),300000,Mail Services
South Lakeland District Council,http://opendatacommunities.org/id/district-council/south-lakeland,43951,Policy & Partnerships,Central Services,http://opendatacommunities.org/def/concept/finance/sercop/objective/102,Idox Software Ltd,2933889,20/04/2020,101570,500,0,Cross boundary data transfer - Elections,271600,ICT Software Customised & Bespoke
South Lakeland District Council,http://opendatacommunities.org/id/district-council/south-lakeland,43951,Support Services,Central Services,,Ulverston Community Partnership,,30/04/2020,104250,500,0,,201700,Financial Services Grants
South Lakeland District Council,http://opendatacommunities.org/id/district-council/south-lakeland,43951,Support Services,Central Services,,GRANTS- MISCELLANEOUS,,30/04/2020,104385,500,0,,201700,Financial Services Grants
South Lakeland District Council,http://opendatacommunities.org/id/district-council/south-lakeland,43951,ICT Group,Central Services,http://opendatacommunities.org/def/concept/finance/sercop/objective/102,IT PROFESSIONAL SERVICES (ITPS),,20/04/2020,102538,504,0,WLR3 Business Line,279999,ICT Not Elsewhere Classified
South Lakeland District Council,http://opendatacommunities.org/id/district-council/south-lakeland,43951,Case Management People,Housing Services,,Ashberry Recruitment,7202591,22/04/2020,103039,521.5,0,,261300,HR Recruitment & Assessment
South Lakeland District Council,http://opendatacommunities.org/id/district-council/south-lakeland,43951,Case Management People,Housing Services,http://opendatacommunities.org/def/concept/finance/sercop/objective/108,FIONA & JOHN ARMER,,17/04/2020,101536,536.98,0,Monthly rent ,250000,Housing
South Lakeland District Council,http://opendatacommunities.org/id/district-council/south-lakeland,43951,Case Management People,Housing Services,,FIONA & JOHN ARMER,,24/04/2020,104179,536.98,0,,250000,Housing
South Lakeland District Council,http://opendatacommunities.org/id/district-council/south-lakeland,43951,Technical Team,Cultural Environmental Regulatory & Planning Services,http://opendatacommunities.org/def/concept/finance/sercop/objective/104,LAMBERT SMITH HAMPTON GROUP,2521225,09/04/2020,97512,550,0,Viability Appraisal Land to north of,191700,Facilities Property Management
South Lakeland District Council,http://opendatacommunities.org/id/district-council/south-lakeland,43951,Case Management People,Housing Services,http://opendatacommunities.org/def/concept/finance/sercop/objective/108,Melanie Whalley-Jones,,17/04/2020,102530,550,0,Accommodation ,250000,Housing
South Lakeland District Council,http://opendatacommunities.org/id/district-council/south-lakeland,43951,Business Support Community Services,Cultural Environmental Regulatory & Planning Services,http://opendatacommunities.org/def/concept/finance/sercop/objective/104,Public Health England,,22/04/2020,93979,550.8,0,Cockle Testing,221100,Health & Safety� Maintenance
South Lakeland District Council,http://opendatacommunities.org/id/district-council/south-lakeland,43951,Human Resources,Central Services,http://opendatacommunities.org/def/concept/finance/sercop/objective/102,Choose Occupational Health,7365943,14/04/2020,97537,555,0,Full Clinic,191800,Facilities Public Relations & Image
South Lakeland District Council,http://opendatacommunities.org/id/district-council/south-lakeland,43951,ICT Group,Central Services,http://opendatacommunities.org/def/concept/finance/sercop/objective/102,IT PROFESSIONAL SERVICES (ITPS),,20/04/2020,102439,564,0,(01539 720867) WLR3 Business Line,279999,ICT Not Elsewhere Classified
South Lakeland District Council,http://opendatacommunities.org/id/district-council/south-lakeland,43951,Leisure and Wellbeing,Cultural Environmental Regulatory & Planning Services,http://opendatacommunities.org/def/concept/finance/sercop/objective/104,Greaves Tree Services,,22/04/2020,101525,580,0,"Call out works at Yewbarrow Woods,",241600,Horticultural Trees & Shrubs
South Lakeland District Council,http://opendatacommunities.org/id/district-council/south-lakeland,43951,Business Support Community Services,Cultural Environmental Regulatory & Planning Services,http://opendatacommunities.org/def/concept/finance/sercop/objective/104,SHB Hire Ltd,,06/04/2020,95377,581.25,0,Refrigerated Van for Private Water,381210,Vehicle Mangement- Hire
South Lakeland District Council,http://opendatacommunities.org/id/district-council/south-lakeland,43951,Case Management People,Central Services,,ADECCO UK LIMITED,593232,30/04/2020,104395,583.52,0,,261400,HR Temporary & Agency Staff
South Lakeland District Council,http://opendatacommunities.org/id/district-council/south-lakeland,43951,Development Management,Cultural Environmental Regulatory & Planning Services,http://opendatacommunities.org/def/concept/finance/sercop/objective/104,The Oyster Partnership,5020374,02/04/2020,94374,592.65,0,Supply of Contract workers for Planning,261300,HR Recruitment & Assessment
South Lakeland District Council,http://opendatacommunities.org/id/district-council/south-lakeland,43951,Business Support Community Services,Cultural Environmental Regulatory & Planning Services,,Harry Park Tyres Ltd,8131208,30/04/2020,103072,595,0,,381500,Vehicle Mgt Parts
South Lakeland District Council,http://opendatacommunities.org/id/district-council/south-lakeland,43951,Support Services,SLDC as Agent,,Richard Frank,,06/04/2020,95370,600,0,Project Development Services for ATiC,151000,Consultancy Business
South Lakeland District Council,http://opendatacommunities.org/id/district-council/south-lakeland,43951,Business Support Community Services,Cultural Environmental Regulatory & Planning Services,,DENNIS EAGLE LTD,3794455,30/04/2020,103973,621.86,0,,381300,Vehicle Mgt Industrial
South Lakeland District Council,http://opendatacommunities.org/id/district-council/south-lakeland,43951,Business Support Community Services,Cultural Environmental Regulatory & Planning Services,,ARCO LIMITED,133804,22/04/2020,103035,630.9,0,,141100,Clothing Protective
South Lakeland District Council,http://opendatacommunities.org/id/district-council/south-lakeland,43951,Development Management,Central Services,http://opendatacommunities.org/def/concept/finance/sercop/objective/102,The Oyster Partnership,5020374,02/04/2020,94374,632.75,0,Supply of Contract workers for Planning,261300,HR Recruitment & Assessment
South Lakeland District Council,http://opendatacommunities.org/id/district-council/south-lakeland,43951,Technical Team,Cultural Environmental Regulatory & Planning Services,http://opendatacommunities.org/def/concept/finance/sercop/objective/104,Carrington West,,03/04/2020,94342,647.82,0,AGENCY STAFF PLANNING,159999,Consultancy Not Elsewhere Classified
South Lakeland District Council,http://opendatacommunities.org/id/district-council/south-lakeland,43951,Kendal Town Hall,Cultural Environmental Regulatory & Planning Services,,RIVERBANK HOSPITALITY CATERING,,30/04/2020,104696,648,0,,111000,Catering Banquet & Catering
South Lakeland District Council,http://opendatacommunities.org/id/district-council/south-lakeland,43951,ICT Group,Central Services,http://opendatacommunities.org/def/concept/finance/sercop/objective/102,The Networking People (Northwest) LTD,,03/04/2020,94371,650,0,PS Days,270000,Information Communications Technology
South Lakeland District Council,http://opendatacommunities.org/id/district-council/south-lakeland,43951,Business Support Community Services,Cultural Environmental Regulatory & Planning Services,http://opendatacommunities.org/def/concept/finance/sercop/objective/104,BRIAN ARMISTEAD LTD T/A SINKFALL RECYCLI,4133280,23/04/2020,97499,653.6,0,Tipping charges - green waste,391110,Construction Buildings Construction
South Lakeland District Council,http://opendatacommunities.org/id/district-council/south-lakeland,43951,Business Support Community Services,Cultural Environmental Regulatory & Planning Services,http://opendatacommunities.org/def/concept/finance/sercop/objective/104,GARWOOD EUROPE LTD,4333504,08/04/2020,96206,656,0,Parts,182011,Environment Waste Management Consumables
South Lakeland District Council,http://opendatacommunities.org/id/district-council/south-lakeland,43951,Business Support Community Services,Central Services,http://opendatacommunities.org/def/concept/finance/sercop/objective/102,Richard A Majewicz,,02/04/2020,94389,675,0,Conservation advice,159999,Consultancy Not Elsewhere Classified
South Lakeland District Council,http://opendatacommunities.org/id/district-council/south-lakeland,43951,Case Management Account Mgmt,Cultural Environmental Regulatory & Planning Services,,CAPITA BUSINESS SERVICES LTD,2299747,20/04/2020,102558,683.31,0,,261500,HR Training & Conferences
South Lakeland District Council,http://opendatacommunities.org/id/district-council/south-lakeland,43951,Case Management People,Housing Services,,Ashberry Recruitment,7202591,20/04/2020,102557,691.64,0,,261300,HR Recruitment & Assessment
South Lakeland District Council,http://opendatacommunities.org/id/district-council/south-lakeland,43951,Support Services,Central Services,http://opendatacommunities.org/def/concept/finance/sercop/objective/102,Browne Jacobson LLP,OC306448,03/04/2020,94384,700,0,?Grant Agreement for Castles and Coasts,281200,Legal Services General Support
South Lakeland District Council,http://opendatacommunities.org/id/district-council/south-lakeland,43951,Development Implementation,Central Services,http://opendatacommunities.org/def/concept/finance/sercop/objective/102,The Design Attic Ltd,,06/04/2020,95375,700,0,SLDC - Kendal Fell Phase 1,191100,Facilities Design & Photography
South Lakeland District Council,http://opendatacommunities.org/id/district-council/south-lakeland,43951,Case Management People,Housing Services,http://opendatacommunities.org/def/concept/finance/sercop/objective/108,Martin Smith,,17/04/2020,101535,700,0,Final rent payment ,250000,Housing
South Lakeland District Council,http://opendatacommunities.org/id/district-council/south-lakeland,43951,Case Management People,Central Services,http://opendatacommunities.org/def/concept/finance/sercop/objective/102,ADECCO UK LIMITED,593232,06/04/2020,95221,704.09,0,Agency Staff to cover Affordable,261400,HR Temporary & Agency Staff
South Lakeland District Council,http://opendatacommunities.org/id/district-council/south-lakeland,43951,Case Management People,Housing Services,http://opendatacommunities.org/def/concept/finance/sercop/objective/108,Ashberry Recruitment,7202591,02/04/2020,94369,708.98,0,Agency staff at Town View Fields,261300,HR Recruitment & Assessment
South Lakeland District Council,http://opendatacommunities.org/id/district-council/south-lakeland,43951,Business Support Community Services,Cultural Environmental Regulatory & Planning Services,http://opendatacommunities.org/def/concept/finance/sercop/objective/104,FAUN ZOELLER (UK) LTD,751804,17/04/2020,97514,709.4,0,Parts & repairs,381400,Vehicle Mgt Maintenance
South Lakeland District Council,http://opendatacommunities.org/id/district-council/south-lakeland,43951,Case Management People,Central Services,http://opendatacommunities.org/def/concept/finance/sercop/objective/102,ADECCO UK LIMITED,593232,17/04/2020,98581,713.73,0,Agency Staff to cover Affordable,261400,HR Temporary & Agency Staff
South Lakeland District Council,http://opendatacommunities.org/id/district-council/south-lakeland,43951,Case Management Account Mgmt,Central Services,http://opendatacommunities.org/def/concept/finance/sercop/objective/102,ALPHATEC P.F.E,5419826,06/04/2020,95371,730,0,Service contract renewal + guillotine,271400,ICT Office & Reprographics Equipment
South Lakeland District Council,http://opendatacommunities.org/id/district-council/south-lakeland,43951,Business Support Community Services,Cultural Environmental Regulatory & Planning Services,,AUTOPARTS (CUMBRIA) LTD,2579204,22/04/2020,103127,744.56,0,,381500,Vehicle Mgt Parts
South Lakeland District Council,http://opendatacommunities.org/id/district-council/south-lakeland,43951,Case Management Account Mgmt,Highways & Transport Services,http://opendatacommunities.org/def/concept/finance/sercop/objective/107,METRIC GROUP LIMITED,2560839,08/04/2020,93385,745.5,0,Web Hosting costs 01/04/2020 to,359999,Street & Traffic Not Elsewhere Classifie
South Lakeland District Council,http://opendatacommunities.org/id/district-council/south-lakeland,43951,Case Management Account Mgmt,Highways & Transport Services,http://opendatacommunities.org/def/concept/finance/sercop/objective/107,METRIC GROUP LIMITED,2560839,22/04/2020,97938,745.5,0,Web Hosting costs 01/04/2020 to,359999,Street & Traffic Not Elsewhere Classifie
South Lakeland District Council,http://opendatacommunities.org/id/district-council/south-lakeland,43951,Case Management People,Central Services,http://opendatacommunities.org/def/concept/finance/sercop/objective/102,ADECCO UK LIMITED,593232,17/04/2020,93688,747.49,0,Agency Staff to cover Affordable,261400,HR Temporary & Agency Staff
South Lakeland District Council,http://opendatacommunities.org/id/district-council/south-lakeland,43951,Human Resources,Central Services,http://opendatacommunities.org/def/concept/finance/sercop/objective/102,Skillset Limited,,20/04/2020,102090,750,0,Year 1 costs (software and support) -,261520,Human Resources Training
South Lakeland District Council,http://opendatacommunities.org/id/district-council/south-lakeland,43951,Case Management People,Central Services,,ADECCO UK LIMITED,593232,30/04/2020,104012,752.31,0,,261400,HR Temporary & Agency Staff
South Lakeland District Council,http://opendatacommunities.org/id/district-council/south-lakeland,43951,Development Implementation,Culture and Related Serv,,LAMBERT SMITH HAMPTON GROUP,2521225,30/04/2020,104384,770,0,,999999,Unclassifiable
South Lakeland District Council,http://opendatacommunities.org/id/district-council/south-lakeland,43951,ICT Group,Central Services,http://opendatacommunities.org/def/concept/finance/sercop/objective/102,IT PROFESSIONAL SERVICES (ITPS),,20/04/2020,102551,787.2,0, WLR3 Business Line,279999,ICT Not Elsewhere Classified
South Lakeland District Council,http://opendatacommunities.org/id/district-council/south-lakeland,43951,Business Support Community Services,Central Services,http://opendatacommunities.org/def/concept/finance/sercop/objective/102,The Oyster Partnership,5020374,08/04/2020,94373,792,0,Agency Environmental Health Officer,261300,HR Recruitment & Assessment
South Lakeland District Council,http://opendatacommunities.org/id/district-council/south-lakeland,43951,Business Support Community Services,Central Services,http://opendatacommunities.org/def/concept/finance/sercop/objective/102,The Oyster Partnership,5020374,14/04/2020,97533,792,0,Agency Environmental Health Officer,261300,HR Recruitment & Assessment
South Lakeland District Council,http://opendatacommunities.org/id/district-council/south-lakeland,43951,Case Management Regulatory,Central Services,http://opendatacommunities.org/def/concept/finance/sercop/objective/102,The Oyster Partnership,5020374,20/04/2020,102533,792,0,Agency Environmental Health Officer,261300,HR Recruitment & Assessment
South Lakeland District Council,http://opendatacommunities.org/id/district-council/south-lakeland,43951,Business Support Community Services,Cultural Environmental Regulatory & Planning Services,,HAKO MACHINES LIMITED,1414225,22/04/2020,103160,796.33,0,,131000,Cleaning & Janitorial Cleaning Materials
South Lakeland District Council,http://opendatacommunities.org/id/district-council/south-lakeland,43951,Support Services,Central Services,http://opendatacommunities.org/def/concept/finance/sercop/objective/102,ALLERDALE BOROUGH COUNCIL,,02/04/2020,94379,800,0,3 Licences for PASS Procurement Training,908000,Public Bodies Council support services
South Lakeland District Council,http://opendatacommunities.org/id/district-council/south-lakeland,43951,Case Management Regulatory,Central Services,http://opendatacommunities.org/def/concept/finance/sercop/objective/102,The Oyster Partnership,5020374,20/04/2020,102535,800,0,Agency Environmental Health Officer,261300,HR Recruitment & Assessment
South Lakeland District Council,http://opendatacommunities.org/id/district-council/south-lakeland,43951,Case Management People,Housing Services,,Ashberry Recruitment,7202591,20/04/2020,102559,825.11,0,,261300,HR Recruitment & Assessment
South Lakeland District Council,http://opendatacommunities.org/id/district-council/south-lakeland,43951,Business Support Community Services,Cultural Environmental Regulatory & Planning Services,http://opendatacommunities.org/def/concept/finance/sercop/objective/104,ETS UK LIMITED,2588203,08/04/2020,96208,834.08,0,Repairs,381500,Vehicle Mgt Parts
South Lakeland District Council,http://opendatacommunities.org/id/district-council/south-lakeland,43951,Case Management People,Housing Services,http://opendatacommunities.org/def/concept/finance/sercop/objective/108,FIONA & JOHN ARMER,,17/04/2020,102532,839.88,0,Monthly rent ,250000,Housing
South Lakeland District Council,http://opendatacommunities.org/id/district-council/south-lakeland,43951,Social Enterprise Admin,SLDC as Agent,,PAY BY PHONE (PAYPOINT),,23/04/2020,101569,847.16,0,Pay-by-Phone fees 2019-20,351400,Street & Traffic Traffic Control
South Lakeland District Council,http://opendatacommunities.org/id/district-council/south-lakeland,43951,Human Resources,Central Services,http://opendatacommunities.org/def/concept/finance/sercop/objective/102,ADECCO UK LIMITED,593232,08/04/2020,95173,871.5,0,Agency,261400,HR Temporary & Agency Staff
South Lakeland District Council,http://opendatacommunities.org/id/district-council/south-lakeland,43951,Human Resources,Central Services,http://opendatacommunities.org/def/concept/finance/sercop/objective/102,ADECCO UK LIMITED,593232,17/04/2020,98331,871.5,0,Agency,261400,HR Temporary & Agency Staff
South Lakeland District Council,http://opendatacommunities.org/id/district-council/south-lakeland,43951,Human Resources,Central Services,,ADECCO UK LIMITED,593232,30/04/2020,104011,871.5,0,,261400,HR Temporary & Agency Staff
South Lakeland District Council,http://opendatacommunities.org/id/district-council/south-lakeland,43951,Support Services,Central Services,http://opendatacommunities.org/def/concept/finance/sercop/objective/102,Browne Jacobson LLP,OC306448,03/04/2020,94388,875,0,Ulverston Brewery Development - Draft,281200,Legal Services General Support
South Lakeland District Council,http://opendatacommunities.org/id/district-council/south-lakeland,43951,Business Support Community Services,Cultural Environmental Regulatory & Planning Services,,TAYLOR ENGINEERING & FABRICATIONS LTD,4989359,22/04/2020,103082,894.16,0,,391200,Construction Engineering
South Lakeland District Council,http://opendatacommunities.org/id/district-council/south-lakeland,43951,Business Support Community Services,Cultural Environmental Regulatory & Planning Services,,Southfield RCV Services,,22/04/2020,103168,900,0,,380000,Vehicle Management
South Lakeland District Council,http://opendatacommunities.org/id/district-council/south-lakeland,43951,Development Implementation,Central Services,http://opendatacommunities.org/def/concept/finance/sercop/objective/102,The Design Attic Ltd,,06/04/2020,95375,920,0,SLDC - Kendal Fell Phase 1,191100,Facilities Design & Photography
South Lakeland District Council,http://opendatacommunities.org/id/district-council/south-lakeland,43951,Business Support Community Services,Cultural Environmental Regulatory & Planning Services,,Southfield RCV Services,,22/04/2020,103165,920,0,,380000,Vehicle Management
South Lakeland District Council,http://opendatacommunities.org/id/district-council/south-lakeland,43951,Technical Team,Central Services,http://opendatacommunities.org/def/concept/finance/sercop/objective/102,Carrington West,,03/04/2020,94342,948.18,0,AGENCY STAFF PLANNING,159999,Consultancy Not Elsewhere Classified
South Lakeland District Council,http://opendatacommunities.org/id/district-council/south-lakeland,43951,Business Support Community Services,Cultural Environmental Regulatory & Planning Services,http://opendatacommunities.org/def/concept/finance/sercop/objective/104,LANCASHIRE DAF,,02/04/2020,94381,963,0,Parts,381400,Vehicle Mgt Maintenance
South Lakeland District Council,http://opendatacommunities.org/id/district-council/south-lakeland,43951,Business Support Community Services,Cultural Environmental Regulatory & Planning Services,http://opendatacommunities.org/def/concept/finance/sercop/objective/104,TPS Preston,,03/04/2020,94044,997.7,0,Parts,381400,Vehicle Mgt Maintenance
South Lakeland District Council,http://opendatacommunities.org/id/district-council/south-lakeland,43951,Support Services,Central Services,http://opendatacommunities.org/def/concept/finance/sercop/objective/102,GRANTS- MISCELLANEOUS,,06/04/2020,94344,1000,0,Locality donation to fund Re-roofing,201700,Financial Services Grants
South Lakeland District Council,http://opendatacommunities.org/id/district-council/south-lakeland,43951,Support Services,Central Services,http://opendatacommunities.org/def/concept/finance/sercop/objective/102,GRANTS- MISCELLANEOUS,,02/04/2020,94378,1000,0,Locality donation to provide financial,201700,Financial Services Grants
South Lakeland District Council,http://opendatacommunities.org/id/district-council/south-lakeland,43951,Business Support Community Services,Central Services,http://opendatacommunities.org/def/concept/finance/sercop/objective/102,The Oyster Partnership,5020374,08/04/2020,94729,1000,0,Agency Environmental Health Officer,261300,HR Recruitment & Assessment
South Lakeland District Council,http://opendatacommunities.org/id/district-council/south-lakeland,43951,Case Management Regulatory,Central Services,http://opendatacommunities.org/def/concept/finance/sercop/objective/102,The Oyster Partnership,5020374,14/04/2020,97532,1000,0,Agency Environmental Health Officer,261300,HR Recruitment & Assessment
South Lakeland District Council,http://opendatacommunities.org/id/district-council/south-lakeland,43951,Development Implementation,Cultural Environmental Regulatory & Planning Services,http://opendatacommunities.org/def/concept/finance/sercop/objective/104,CONISTON PARISH COUNCIL,,17/04/2020,101550,1000,0,Contribution towards Bluebird -,908000,Public Bodies Council support services
South Lakeland District Council,http://opendatacommunities.org/id/district-council/south-lakeland,43951,Environment and Housing,Housing Services,,Homes For Ulverston CLT Ltd,,22/04/2020,103113,1000,0,,250000,Housing
South Lakeland District Council,http://opendatacommunities.org/id/district-council/south-lakeland,43951,Support Services,Cultural Environmental Regulatory & Planning Services,,CUMBRIA TOURISM,3027358,22/04/2020,103158,1000,0,,291400,Arts & Leisure Services Sport & Fitness
South Lakeland District Council,http://opendatacommunities.org/id/district-council/south-lakeland,43951,Support Services,Central Services,,GRANTS- MISCELLANEOUS,,24/04/2020,104106,1000,0,,201700,Financial Services Grants
South Lakeland District Council,http://opendatacommunities.org/id/district-council/south-lakeland,43951,Business Support Community Services,Cultural Environmental Regulatory & Planning Services,,DENNIS EAGLE LTD,3794455,27/04/2020,104005,1041.27,0,,381300,Vehicle Mgt Industrial
South Lakeland District Council,http://opendatacommunities.org/id/district-council/south-lakeland,43951,Business Support Community Services,Cultural Environmental Regulatory & Planning Services,,FAUN ZOELLER (UK) LTD,751804,22/04/2020,103135,1043.8,0,,381400,Vehicle Mgt Maintenance
South Lakeland District Council,http://opendatacommunities.org/id/district-council/south-lakeland,43951,Business Support Community Services,Cultural Environmental Regulatory & Planning Services,http://opendatacommunities.org/def/concept/finance/sercop/objective/104,DENNIS EAGLE LTD,3794455,06/04/2020,94009,1067.18,0,Parts,381300,Vehicle Mgt Industrial
South Lakeland District Council,http://opendatacommunities.org/id/district-council/south-lakeland,43951,Locality,Central Services,http://opendatacommunities.org/def/concept/finance/sercop/objective/102,ARCO LIMITED,133804,22/04/2020,93974,1154.53,0,6M5705 (AA)),141100,Clothing Protective
South Lakeland District Council,http://opendatacommunities.org/id/district-council/south-lakeland,43951,Business Support Community Services,Cultural Environmental Regulatory & Planning Services,,CUMBRIA WASTE RECYCLING LTD,3162439,23/04/2020,102569,1187.7,0,,182012,Environment Waste Management Recycling
South Lakeland District Council,http://opendatacommunities.org/id/district-council/south-lakeland,43951,Case Management Account Mgmt,Central Services,http://opendatacommunities.org/def/concept/finance/sercop/objective/102,Konica Minolta Bus Solutions (UK) Ltd,,03/04/2020,93840,1187.83,0,Q4 print room clicks,192000,Facilities Reprographics
South Lakeland District Council,http://opendatacommunities.org/id/district-council/south-lakeland,43951,Case Management People,Housing Services,http://opendatacommunities.org/def/concept/finance/sercop/objective/108,Mr David Rigg,,17/04/2020,101538,1190,0,Monthly rent ,202000,Financial Services Rents
South Lakeland District Council,http://opendatacommunities.org/id/district-council/south-lakeland,43951,Development Management,Central Services,http://opendatacommunities.org/def/concept/finance/sercop/objective/102,The Oyster Partnership,5020374,02/04/2020,93820,1212.35,0,Supply of Contract workers for Planning,261300,HR Recruitment & Assessment
South Lakeland District Council,http://opendatacommunities.org/id/district-council/south-lakeland,43951,Development Management,Central Services,http://opendatacommunities.org/def/concept/finance/sercop/objective/102,The Oyster Partnership,5020374,02/04/2020,94001,1215.5,0,Supply of Contract workers for Planning,261300,HR Recruitment & Assessment
South Lakeland District Council,http://opendatacommunities.org/id/district-council/south-lakeland,43951,Support Services,Central Services,http://opendatacommunities.org/def/concept/finance/sercop/objective/102,ANTHONY COLLINS SOLICITORS,OC313432,17/04/2020,97509,1237.5,0,Purchase Order for work carried out by,281300,Legal Services Legal Opinion
South Lakeland District Council,http://opendatacommunities.org/id/district-council/south-lakeland,43951,Revenues and Benefits,SLDC as Agent,,ROYAL MAIL GROUP PLC,,17/04/2020,101552,1262.44,0,2019 - 20 Postal Charges a/c 0198123013,301200,Mail Services� Postage
South Lakeland District Council,http://opendatacommunities.org/id/district-council/south-lakeland,43951,Support Services,Central Services,,LAMBERT SMITH HAMPTON GROUP,2521225,23/04/2020,103036,1270.26,0,,191700,Facilities Property Management
South Lakeland District Council,http://opendatacommunities.org/id/district-council/south-lakeland,43951,Case Management People,Cultural Environmental Regulatory & Planning Services,,Hayes & Parkinson Ltd,467905,30/04/2020,103972,1272.5,0,,121000,Cemetery & Crematorium Burial & Crem
South Lakeland District Council,http://opendatacommunities.org/id/district-council/south-lakeland,43951,Technical Team,Central Services,http://opendatacommunities.org/def/concept/finance/sercop/objective/102,Carrington West,,03/04/2020,94340,1276.8,0,AGENCY STAFF PLANNING,159999,Consultancy Not Elsewhere Classified
South Lakeland District Council,http://opendatacommunities.org/id/district-council/south-lakeland,43951,Case Management Regulatory,Central Services,,Carrington West,,22/04/2020,103173,1276.8,0,,159999,Consultancy Not Elsewhere Classified
South Lakeland District Council,http://opendatacommunities.org/id/district-council/south-lakeland,43951,Revenues and Benefits,SLDC as Agent,,ROYAL MAIL GROUP PLC,,22/04/2020,101553,1280.84,0,2019 - 20 Postal Charges a/c 0198123013,301200,Mail Services� Postage
South Lakeland District Council,http://opendatacommunities.org/id/district-council/south-lakeland,43951,Business Support Community Services,Cultural Environmental Regulatory & Planning Services,,Romaquip UK,,22/04/2020,103044,1290.65,0,,381000,Vehicle Mgt Commercial
South Lakeland District Council,http://opendatacommunities.org/id/district-council/south-lakeland,43951,Environment and Housing,Housing Services,http://opendatacommunities.org/def/concept/finance/sercop/objective/108,James Andrews Recruitment Solutions,6834852,23/04/2020,102550,1298.22,0,Agency worker for Community-led Housing,261400,HR Temporary & Agency Staff
South Lakeland District Council,http://opendatacommunities.org/id/district-council/south-lakeland,43951,Environment and Housing,Housing Services,,James Andrews Recruitment Solutions,6834852,27/04/2020,103994,1317.89,0,,261400,HR Temporary & Agency Staff
South Lakeland District Council,http://opendatacommunities.org/id/district-council/south-lakeland,43951,Westmorland Centre Parking Office,Highways & Transport Services,,CAPITA BUSINESS SERVICES LTD (NCR),,01/04/2020,103037,1351.14,0,,261500,HR Training & Conferences
South Lakeland District Council,http://opendatacommunities.org/id/district-council/south-lakeland,43951,Business Support Community Services,Cultural Environmental Regulatory & Planning Services,http://opendatacommunities.org/def/concept/finance/sercop/objective/104,TPS Preston,,03/04/2020,94331,1367.46,0,Parts,381400,Vehicle Mgt Maintenance
South Lakeland District Council,http://opendatacommunities.org/id/district-council/south-lakeland,43951,Business Support Community Services,Cultural Environmental Regulatory & Planning Services,,TOTALKARE LTD,5256574,22/04/2020,103137,1410,0,,381300,Vehicle Mgt Industrial
South Lakeland District Council,http://opendatacommunities.org/id/district-council/south-lakeland,43951,Business Support Community Services,Cultural Environmental Regulatory & Planning Services,http://opendatacommunities.org/def/concept/finance/sercop/objective/104,Southfield RCV Services,,06/04/2020,95397,1413,0,Repairs,380000,Vehicle Management
South Lakeland District Council,http://opendatacommunities.org/id/district-council/south-lakeland,43951,Case Management Account Mgmt,Central Services,,CIVICA UK LTD,1628868,23/04/2020,103189,1416.95,0,,271600,ICT Software Customised & Bespoke
South Lakeland District Council,http://opendatacommunities.org/id/district-council/south-lakeland,43951,Development Management,Central Services,http://opendatacommunities.org/def/concept/finance/sercop/objective/102,The Oyster Partnership,5020374,22/04/2020,97535,1444,0,Supply of Contract workers for Planning,261300,HR Recruitment & Assessment
South Lakeland District Council,http://opendatacommunities.org/id/district-council/south-lakeland,43951,Case Management Account Mgmt,Cultural Environmental Regulatory & Planning Services,http://opendatacommunities.org/def/concept/finance/sercop/objective/104,CONTINENTAL LANDSCAPES LTD,2108452,17/04/2020,97518,1468.32,0,"9""x 2""  909.72 for 240 meters & 4"" x",391310,Construction Open Spaces Construction
South Lakeland District Council,http://opendatacommunities.org/id/district-council/south-lakeland,43951,Case Management People,Housing Services,http://opendatacommunities.org/def/concept/finance/sercop/objective/108,D Clark Properties,,17/04/2020,97501,1500,0,Accommodation ,250000,Housing
South Lakeland District Council,http://opendatacommunities.org/id/district-council/south-lakeland,43951,Support Services,Central Services,http://opendatacommunities.org/def/concept/finance/sercop/objective/102,Pixel Financial Management,8161694,17/04/2020,101526,1500,0,Subs Service Plan 20/21 Pixel,202100,Financial Services Subscriptions
South Lakeland District Council,http://opendatacommunities.org/id/district-council/south-lakeland,43951,Case Management People,Housing Services,,D Clark Properties,,30/04/2020,104701,1500,0,,250000,Housing
South Lakeland District Council,http://opendatacommunities.org/id/district-council/south-lakeland,43951,Environment and Housing,Housing Services,http://opendatacommunities.org/def/concept/finance/sercop/objective/108,James Andrews Recruitment Solutions,6834852,06/04/2020,94714,1534.26,0,Agency worker for Community-led Housing,261400,HR Temporary & Agency Staff
South Lakeland District Council,http://opendatacommunities.org/id/district-council/south-lakeland,43951,Technical Team,Central Services,,Macdonald & Company Freelance Ltd,3882135,30/04/2020,104258,1561.5,0,,261400,HR Temporary & Agency Staff
South Lakeland District Council,http://opendatacommunities.org/id/district-council/south-lakeland,43951,Environment and Housing,Housing Services,http://opendatacommunities.org/def/concept/finance/sercop/objective/108,James Andrews Recruitment Solutions,6834852,23/04/2020,97536,1573.6,0,Agency worker for Community-led Housing,261400,HR Temporary & Agency Staff
South Lakeland District Council,http://opendatacommunities.org/id/district-council/south-lakeland,43951,Technical Team,Central Services,http://opendatacommunities.org/def/concept/finance/sercop/objective/102,Carrington West,,08/04/2020,95394,1596,0,AGENCY STAFF PLANNING,159999,Consultancy Not Elsewhere Classified
South Lakeland District Council,http://opendatacommunities.org/id/district-council/south-lakeland,43951,Case Management Regulatory,Central Services,http://opendatacommunities.org/def/concept/finance/sercop/objective/102,Carrington West,,17/04/2020,99091,1596,0,PLANNING CONTRACTORS,159999,Consultancy Not Elsewhere Classified
South Lakeland District Council,http://opendatacommunities.org/id/district-council/south-lakeland,43951,Business Support Community Services,Cultural Environmental Regulatory & Planning Services,,Masterstaff Limited,2777593,22/04/2020,103153,1598.4,0,,261300,HR Recruitment & Assessment
South Lakeland District Council,http://opendatacommunities.org/id/district-council/south-lakeland,43951,Support Services,Planning and Development,,BEETHAM PARISH COUNCIL,,17/04/2020,101541,1626.37,0,CIL - Neighbourhood Funding Portion,908000,Public Bodies Council support services
South Lakeland District Council,http://opendatacommunities.org/id/district-council/south-lakeland,43951,Environment and Housing,Housing Services,http://opendatacommunities.org/def/concept/finance/sercop/objective/108,James Andrews Recruitment Solutions,6834852,08/04/2020,93965,1632.61,0,Agency worker for Community-led Housing,261400,HR Temporary & Agency Staff
South Lakeland District Council,http://opendatacommunities.org/id/district-council/south-lakeland,43951,Financial Services,Central Services,http://opendatacommunities.org/def/concept/finance/sercop/objective/102,TIAA Ltd,4546319,03/04/2020,94365,1640,0,19/20 Internal Audit Service Quarterly.,201100,Financial Services Audit
South Lakeland District Council,http://opendatacommunities.org/id/district-council/south-lakeland,43951,Case Management People,Housing Services,http://opendatacommunities.org/def/concept/finance/sercop/objective/108,D Clark Properties,,08/04/2020,96193,1650,0,Accommodation ,250000,Housing
South Lakeland District Council,http://opendatacommunities.org/id/district-council/south-lakeland,43951,Case Management People,Housing Services,,D Clark Properties,,23/04/2020,103175,1650,0,,250000,Housing
South Lakeland District Council,http://opendatacommunities.org/id/district-council/south-lakeland,43951,Development Management,Central Services,http://opendatacommunities.org/def/concept/finance/sercop/objective/102,The Oyster Partnership,5020374,24/04/2020,102536,1665,0,Supply of Contract workers for Planning,261300,HR Recruitment & Assessment
South Lakeland District Council,http://opendatacommunities.org/id/district-council/south-lakeland,43951,Support Services,Planning and Development,,LOWER ALLITHWAITE PARISH COUNCIL,,17/04/2020,101544,1674.34,0,CIL - Neighbourhood Funding Portion,908000,Public Bodies Council support services
South Lakeland District Council,http://opendatacommunities.org/id/district-council/south-lakeland,43951,Financial Services,SLDC as Agent,,Arthur J Gallagher Insurance Brokers Lld,108909,22/04/2020,101519,1699.04,0,Brokerage and other Insurance policies,201800,Financial Services Insurance
South Lakeland District Council,http://opendatacommunities.org/id/district-council/south-lakeland,43951,Case Management People,Central Services,http://opendatacommunities.org/def/concept/finance/sercop/objective/102,MORGAN HUNT UK LIMITED,4349535,20/04/2020,102091,1703.65,0,Payment for Agency,269999,HR Not Elsewhere Classified
South Lakeland District Council,http://opendatacommunities.org/id/district-council/south-lakeland,43951,Support Services,Planning and Development,,LOWER HOLKER PARISH COUNCIL,,17/04/2020,101540,1714.13,0,CIL - Neighbourhood Funding Portion,908000,Public Bodies Council support services
South Lakeland District Council,http://opendatacommunities.org/id/district-council/south-lakeland,43951,Business Support Community Services,Cultural Environmental Regulatory & Planning Services,,AUTOPARTS (CUMBRIA) LTD,2579204,22/04/2020,103169,1743.75,0,,381500,Vehicle Mgt Parts
South Lakeland District Council,http://opendatacommunities.org/id/district-council/south-lakeland,43951,Business Support Community Services,Cultural Environmental Regulatory & Planning Services,,Southfield RCV Services,,30/04/2020,104674,1743.75,0,,380000,Vehicle Management
South Lakeland District Council,http://opendatacommunities.org/id/district-council/south-lakeland,43951,Case Management Account Mgmt,Central Services,http://opendatacommunities.org/def/concept/finance/sercop/objective/102,NEWSQUEST MEDIA GROUP LTD,3102566,17/04/2020,99098,1771,0,Public Notice - SLDC Council Tax,191000,Facilities Advertising
South Lakeland District Council,http://opendatacommunities.org/id/district-council/south-lakeland,43951,Democratic and Member Services,Central Services,http://opendatacommunities.org/def/concept/finance/sercop/objective/102,Browne Jacobson LLP,OC306448,03/04/2020,94386,1800,0,Advice On Grant Application To Cumbria,281200,Legal Services General Support
South Lakeland District Council,http://opendatacommunities.org/id/district-council/south-lakeland,43951,ICT Group,Central Services,http://opendatacommunities.org/def/concept/finance/sercop/objective/102,IT PROFESSIONAL SERVICES (ITPS),,20/04/2020,102538,1812,0, WLR3 Business Line,279999,ICT Not Elsewhere Classified
South Lakeland District Council,http://opendatacommunities.org/id/district-council/south-lakeland,43951,Case Management People,Central Services,,MORGAN HUNT UK LIMITED,4349535,30/04/2020,103967,1823.62,0,,269999,HR Not Elsewhere Classified
South Lakeland District Council,http://opendatacommunities.org/id/district-council/south-lakeland,43951,Support Services,Central Services,http://opendatacommunities.org/def/concept/finance/sercop/objective/102,Browne Jacobson LLP,OC306448,06/04/2020,94713,1850,0,State Aid legal advice for Atic CONT0251,281200,Legal Services General Support
South Lakeland District Council,http://opendatacommunities.org/id/district-council/south-lakeland,43951,Human Resources,Central Services,http://opendatacommunities.org/def/concept/finance/sercop/objective/102,Choose Occupational Health,7365943,14/04/2020,97537,1912.25,0,Full Clinic,191800,Facilities Public Relations & Image
South Lakeland District Council,http://opendatacommunities.org/id/district-council/south-lakeland,43951,Business Support Community Services,Cultural Environmental Regulatory & Planning Services,,AUTOPARTS (CUMBRIA) LTD,2579204,22/04/2020,103144,1931.28,0,,381500,Vehicle Mgt Parts
South Lakeland District Council,http://opendatacommunities.org/id/district-council/south-lakeland,43951,Case Management People,Central Services,http://opendatacommunities.org/def/concept/finance/sercop/objective/102,MORGAN HUNT UK LIMITED,4349535,02/04/2020,94376,1950.5,0,Payment for Agency,269999,HR Not Elsewhere Classified
South Lakeland District Council,http://opendatacommunities.org/id/district-council/south-lakeland,43951,Technical Team,Central Services,http://opendatacommunities.org/def/concept/finance/sercop/objective/102,Macdonald & Company Freelance Ltd,3882135,17/04/2020,97523,1980,0,PLANNING CONTRACT STAFF,261400,HR Temporary & Agency Staff
South Lakeland District Council,http://opendatacommunities.org/id/district-council/south-lakeland,43951,Leisure and Wellbeing,Cultural Environmental Regulatory & Planning Services,http://opendatacommunities.org/def/concept/finance/sercop/objective/104,KENDAL TORCHLIGHT PROCESSION LTD,4583995,06/04/2020,94356,2000,0,Strategic Cultural Partnership funding,201700,Financial Services Grants
South Lakeland District Council,http://opendatacommunities.org/id/district-council/south-lakeland,43951,Case Management Account Mgmt,Cultural Environmental Regulatory & Planning Services,http://opendatacommunities.org/def/concept/finance/sercop/objective/104,Adams Integra,70364651,08/04/2020,94370,2000,0,Development Viability - Kendal,150000,Consultancy
South Lakeland District Council,http://opendatacommunities.org/id/district-council/south-lakeland,43951,Case Management People,Central Services,http://opendatacommunities.org/def/concept/finance/sercop/objective/102,MORGAN HUNT UK LIMITED,4349535,02/04/2020,94377,2021,0,Payment for Agency,269999,HR Not Elsewhere Classified
South Lakeland District Council,http://opendatacommunities.org/id/district-council/south-lakeland,43951,Business Support Community Services,Cultural Environmental Regulatory & Planning Services,,Masterstaff Limited,2777593,22/04/2020,103143,2030.4,0,,261300,HR Recruitment & Assessment
South Lakeland District Council,http://opendatacommunities.org/id/district-council/south-lakeland,43951,Financial Services,Central Services,http://opendatacommunities.org/def/concept/finance/sercop/objective/102,LAVAT Consulting t/a PSTAX,4810070,14/04/2020,97525,2065,0,20/21 Vat advice Service,202100,Financial Services Subscriptions
South Lakeland District Council,http://opendatacommunities.org/id/district-council/south-lakeland,43951,Case Management People,Central Services,http://opendatacommunities.org/def/concept/finance/sercop/objective/102,MORGAN HUNT UK LIMITED,4349535,14/04/2020,97538,2068,0,Payment for Agency,269999,HR Not Elsewhere Classified
South Lakeland District Council,http://opendatacommunities.org/id/district-council/south-lakeland,43951,Technical Team,Central Services,http://opendatacommunities.org/def/concept/finance/sercop/objective/102,Macdonald & Company Freelance Ltd,3882135,20/04/2020,95393,2124,0,PLANNING CONTRACT STAFF,261400,HR Temporary & Agency Staff
South Lakeland District Council,http://opendatacommunities.org/id/district-council/south-lakeland,43951,Business Support Community Services,Cultural Environmental Regulatory & Planning Services,,Masterstaff Limited,2777593,22/04/2020,103142,2131.2,0,,261300,HR Recruitment & Assessment
South Lakeland District Council,http://opendatacommunities.org/id/district-council/south-lakeland,43951,Case Management People,Central Services,http://opendatacommunities.org/def/concept/finance/sercop/objective/102,MORGAN HUNT UK LIMITED,4349535,08/04/2020,94731,2138.5,0,Payment for Agency,269999,HR Not Elsewhere Classified
South Lakeland District Council,http://opendatacommunities.org/id/district-council/south-lakeland,43951,Development Management,Cultural Environmental Regulatory & Planning Services,http://opendatacommunities.org/def/concept/finance/sercop/objective/104,The Oyster Partnership,5020374,02/04/2020,93822,2170,0,Supply of Contract workers for Planning,261300,HR Recruitment & Assessment
South Lakeland District Council,http://opendatacommunities.org/id/district-council/south-lakeland,43951,Leisure and Wellbeing,Cultural Environmental Regulatory & Planning Services,,CONTINENTAL LANDSCAPES LTD,2108452,23/04/2020,103998,2170.28,0,,391310,Construction Open Spaces Construction
South Lakeland District Council,http://opendatacommunities.org/id/district-council/south-lakeland,43951,Business Support Community Services,Cultural Environmental Regulatory & Planning Services,http://opendatacommunities.org/def/concept/finance/sercop/objective/104,RIGHT 2 WORK,,09/04/2020,94715,2172,0,Bulky waste collection,321010,Social Care Adult Advice & Counselling
South Lakeland District Council,http://opendatacommunities.org/id/district-council/south-lakeland,43951,Human Resources,Central Services,http://opendatacommunities.org/def/concept/finance/sercop/objective/102,Ginger Dog,11132740,08/04/2020,94385,2189.7,0,March invoice from Ginger Dog,261500,HR Training & Conferences
South Lakeland District Council,http://opendatacommunities.org/id/district-council/south-lakeland,43951,Business Support Community Services,Cultural Environmental Regulatory & Planning Services,http://opendatacommunities.org/def/concept/finance/sercop/objective/104,PENNINGTONS (KENDAL) LIMITED,434649,17/04/2020,97547,2200,0,Annual Charge for use of Link Road at,182013,Environment Waste Mgt Waste Collection
South Lakeland District Council,http://opendatacommunities.org/id/district-council/south-lakeland,43951,Business Support Community Services,Cultural Environmental Regulatory & Planning Services,http://opendatacommunities.org/def/concept/finance/sercop/objective/104,CUMBRIA WASTE RECYCLING LTD,3162439,06/04/2020,94722,2257.1,0,Skip emptying at Ecclerigg & Ulverston,182012,Environment Waste Management Recycling
South Lakeland District Council,http://opendatacommunities.org/id/district-council/south-lakeland,43951,Business Support Community Services,Central Services,http://opendatacommunities.org/def/concept/finance/sercop/objective/102,LAKE DISTRICT NATIONAL PARK AUTHORITY,,08/04/2020,95395,2280,0,LAND CHARGE SEARCH ENQUIRIES LDNPA,201700,Financial Services Grants
South Lakeland District Council,http://opendatacommunities.org/id/district-council/south-lakeland,43951,Business Support Community Services,Cultural Environmental Regulatory & Planning Services,,Masterstaff Limited,2777593,27/04/2020,104004,2288.52,0,,261300,HR Recruitment & Assessment
South Lakeland District Council,http://opendatacommunities.org/id/district-council/south-lakeland,43951,Revenues and Benefits,SLDC as Agent,,ROYAL MAIL GROUP PLC,,17/04/2020,101551,2295.76,0,2019 - 20 Postal Charges a/c 0198123013,301200,Mail Services� Postage
South Lakeland District Council,http://opendatacommunities.org/id/district-council/south-lakeland,43951,Business Support Community Services,Cultural Environmental Regulatory & Planning Services,http://opendatacommunities.org/def/concept/finance/sercop/objective/104,FAUN ZOELLER (UK) LTD,751804,17/04/2020,97513,2309.2,0,Parts & repairs,381400,Vehicle Mgt Maintenance
South Lakeland District Council,http://opendatacommunities.org/id/district-council/south-lakeland,43951,Development Implementation,Transport,,LAMBERT SMITH HAMPTON GROUP,2521225,27/04/2020,103999,2310,0,,191700,Facilities Property Management
South Lakeland District Council,http://opendatacommunities.org/id/district-council/south-lakeland,43951,Business Support Community Services,Central Services,http://opendatacommunities.org/def/concept/finance/sercop/objective/102,CUMBRIA COUNTY COUNCIL,,06/04/2020,94710,2393,0,LAND CHARGE SEARCH ENQUIRIES HIGHWAYS,908000,Public Bodies Council support services
South Lakeland District Council,http://opendatacommunities.org/id/district-council/south-lakeland,43951,Business Support Community Services,Cultural Environmental Regulatory & Planning Services,http://opendatacommunities.org/def/concept/finance/sercop/objective/104,BRIAN ARMISTEAD LTD T/A SINKFALL RECYCLI,4133280,23/04/2020,97515,2401.98,0,Tipping charges - green waste,391110,Construction Buildings Construction
South Lakeland District Council,http://opendatacommunities.org/id/district-council/south-lakeland,43951,Business Support Community Services,Cultural Environmental Regulatory & Planning Services,http://opendatacommunities.org/def/concept/finance/sercop/objective/104,South Lakeland Hydrotherapy Trust Ltd,,06/04/2020,95384,2500,0,2017/18 funding contribution to,201700,Financial Services Grants
South Lakeland District Council,http://opendatacommunities.org/id/district-council/south-lakeland,43951,Case Management Account Mgmt,SLDC as Agent,,ROYAL MAIL GROUP PLC,,30/04/2020,104702,2507.62,0,,301200,Mail Services� Postage
South Lakeland District Council,http://opendatacommunities.org/id/district-council/south-lakeland,43951,Business Support Community Services,Housing Services,,CRUDEN PROPERTY SERVICES LTD,3851237,23/04/2020,103174,2521.85,0,,391111,Construction Buildings Repair & Mtce
South Lakeland District Council,http://opendatacommunities.org/id/district-council/south-lakeland,43951,Lake Wardens,Cultural Environmental Regulatory & Planning Services,http://opendatacommunities.org/def/concept/finance/sercop/objective/104,JONATHAN B JACKSON LTD,7762503,17/04/2020,97508,2550,0,Annual Inspection of Hire Craft in the,391110,Construction Buildings Construction
South Lakeland District Council,http://opendatacommunities.org/id/district-council/south-lakeland,43951,Business Support Community Services,Central Services,http://opendatacommunities.org/def/concept/finance/sercop/objective/102,LAKE DISTRICT NATIONAL PARK AUTHORITY,,08/04/2020,95396,2600,0,LAND CHARGE SEARCH ENQUIRIES LDNPA,201700,Financial Services Grants
South Lakeland District Council,http://opendatacommunities.org/id/district-council/south-lakeland,43951,Business Support Community Services,Cultural Environmental Regulatory & Planning Services,,Southfield RCV Services,,22/04/2020,103103,2610,0,,380000,Vehicle Management
South Lakeland District Council,http://opendatacommunities.org/id/district-council/south-lakeland,43951,Development Management,Cultural Environmental Regulatory & Planning Services,http://opendatacommunities.org/def/concept/finance/sercop/objective/104,The Oyster Partnership,5020374,06/04/2020,94730,2665.6,0,Supply of Contract workers for Planning,261300,HR Recruitment & Assessment
South Lakeland District Council,http://opendatacommunities.org/id/district-council/south-lakeland,43951,Support Services,Central Services,http://opendatacommunities.org/def/concept/finance/sercop/objective/102,The Stone & Garden Company,,23/04/2020,93363,2673,0,22 pallets of 90 x 15kg sandbags UV,181300,Environment Land Protection
South Lakeland District Council,http://opendatacommunities.org/id/district-council/south-lakeland,43951,Development Management,Central Services,http://opendatacommunities.org/def/concept/finance/sercop/objective/102,The Oyster Partnership,5020374,02/04/2020,94002,2695,0,Supply of Contract workers for Planning,261300,HR Recruitment & Assessment
South Lakeland District Council,http://opendatacommunities.org/id/district-council/south-lakeland,43951,Business Support Community Services,Cultural Environmental Regulatory & Planning Services,http://opendatacommunities.org/def/concept/finance/sercop/objective/104,MILNTHORPE KENNELS & CATTERY,8932302,08/04/2020,96196,2791.67,0,Stray dog contract kennelling fees,181500,Environment Animal Services
South Lakeland District Council,http://opendatacommunities.org/id/district-council/south-lakeland,43951,Development Management,Central Services,http://opendatacommunities.org/def/concept/finance/sercop/objective/102,The Oyster Partnership,5020374,22/04/2020,97534,2840.6,0,Supply of Contract workers for Planning,261300,HR Recruitment & Assessment
South Lakeland District Council,http://opendatacommunities.org/id/district-council/south-lakeland,43951,ICT Group,Central Services,http://opendatacommunities.org/def/concept/finance/sercop/objective/102,THE DOCUMENT MANAGEMENT GROUP LTD,5210023,20/04/2020,93916,2850,0,Scanner maintenance,191200,Facilities Document Archiving & Storage
South Lakeland District Council,http://opendatacommunities.org/id/district-council/south-lakeland,43951,Westmorland Centre Parking Office,Highways & Transport Services,http://opendatacommunities.org/def/concept/finance/sercop/objective/107,BEMROSE BOOTH PARAGON LTD,4891375,09/04/2020,94368,2866.12,0,ACS Reflex Tickets for Multi Storey Car,191600,Facilities Printing
South Lakeland District Council,http://opendatacommunities.org/id/district-council/south-lakeland,43951,Development Implementation,External Trading Accounts,,Bowness & Windermere Community,,20/04/2020,102556,2900.62,0,,311600,Healthcare Services
South Lakeland District Council,http://opendatacommunities.org/id/district-council/south-lakeland,43951,Case Management People,Housing Services,http://opendatacommunities.org/def/concept/finance/sercop/objective/108,LAMBERT SMITH HAMPTON GROUP,2521225,03/04/2020,94336,2980,0,Valuation Audits & Affordable Grant,191700,Facilities Property Management
South Lakeland District Council,http://opendatacommunities.org/id/district-council/south-lakeland,43951,Case Management People,Housing Services,http://opendatacommunities.org/def/concept/finance/sercop/objective/108,MANNA HOUSE,8041948,17/04/2020,97503,3000,0,Housing Advice and Advocacy,250000,Housing
South Lakeland District Council,http://opendatacommunities.org/id/district-council/south-lakeland,43951,Financial Services,SLDC as Agent,,Arthur J Gallagher Insurance Brokers Lld,108909,23/04/2020,103098,3000,0,,201800,Financial Services Insurance
South Lakeland District Council,http://opendatacommunities.org/id/district-council/south-lakeland,43951,Business Support Community Services,Cultural Environmental Regulatory & Planning Services,,Southfield RCV Services,,22/04/2020,103166,3060,0,,380000,Vehicle Management
South Lakeland District Council,http://opendatacommunities.org/id/district-council/south-lakeland,43951,Business Support Community Services,Cultural Environmental Regulatory & Planning Services,,Masterstaff Limited,2777593,27/04/2020,104008,3072.24,0,,261300,HR Recruitment & Assessment
South Lakeland District Council,http://opendatacommunities.org/id/district-council/south-lakeland,43951,Business Support Community Services,Cultural Environmental Regulatory & Planning Services,http://opendatacommunities.org/def/concept/finance/sercop/objective/104,CUMBRIA ASSOCIATION OF LOCAL COUNCILS,,06/04/2020,95385,3250,0,17/18 Community Grant contribution to,201700,Financial Services Grants
South Lakeland District Council,http://opendatacommunities.org/id/district-council/south-lakeland,43951,Business Support Community Services,Cultural Environmental Regulatory & Planning Services,,Masterstaff Limited,2777593,30/04/2020,103073,3264.36,0,,261300,HR Recruitment & Assessment
South Lakeland District Council,http://opendatacommunities.org/id/district-council/south-lakeland,43951,Financial Services,Central Services,http://opendatacommunities.org/def/concept/finance/sercop/objective/102,TIAA Ltd,4546319,17/04/2020,102539,3280,0,19/20 Internal Audit Service Quarterly.,201100,Financial Services Audit
South Lakeland District Council,http://opendatacommunities.org/id/district-council/south-lakeland,43951,Business Support Community Services,Cultural Environmental Regulatory & Planning Services,,Harry Park Tyres Ltd,8131208,22/04/2020,103151,3312.25,0,,381500,Vehicle Mgt Parts
South Lakeland District Council,http://opendatacommunities.org/id/district-council/south-lakeland,43951,Support Services,Central Services,http://opendatacommunities.org/def/concept/finance/sercop/objective/102,Tribe Culture Change Ltd,,06/04/2020,94345,3386,0,Health & Safety Support,220000,Health and Safety
South Lakeland District Council,http://opendatacommunities.org/id/district-council/south-lakeland,43951,Case Management Account Mgmt,Central Services,http://opendatacommunities.org/def/concept/finance/sercop/objective/102,CFH Docmail Ltd,1716891,17/04/2020,97505,3500,0,Direct Debit CTAX & NNDR Printing,300000,Mail Services
South Lakeland District Council,http://opendatacommunities.org/id/district-council/south-lakeland,43951,Business Support Community Services,Cultural Environmental Regulatory & Planning Services,,Initial,1298292,30/04/2020,103068,3510.93,0,,131011,Cleaning & Janitorial Cleaning Materials
South Lakeland District Council,http://opendatacommunities.org/id/district-council/south-lakeland,43951,Business Support Community Services,Cultural Environmental Regulatory & Planning Services,http://opendatacommunities.org/def/concept/finance/sercop/objective/104,Southfield RCV Services,,03/04/2020,94039,3825,0,Repairs,380000,Vehicle Management
South Lakeland District Council,http://opendatacommunities.org/id/district-council/south-lakeland,43951,Human Resources,Central Services,http://opendatacommunities.org/def/concept/finance/sercop/objective/102,MIDLAND SOFTWARE LTD,1852206,01/04/2020,101522,3889.75,0,iTrent software,271600,ICT Software Customised & Bespoke
South Lakeland District Council,http://opendatacommunities.org/id/district-council/south-lakeland,43951,Support Services,Planning and Development,,KENDAL TOWN COUNCIL,,17/04/2020,101542,3943.12,0,CIL - Neighbourhood Funding Portion,908000,Public Bodies Council support services
South Lakeland District Council,http://opendatacommunities.org/id/district-council/south-lakeland,43951,Revenues and Benefits,Highways & Transport Services,,CAPITA BUSINESS SERVICES LTD (NCR),,01/04/2020,102566,4135.36,0,,261500,HR Training & Conferences
South Lakeland District Council,http://opendatacommunities.org/id/district-council/south-lakeland,43951,Business Support Community Services,Cultural Environmental Regulatory & Planning Services,http://opendatacommunities.org/def/concept/finance/sercop/objective/104,UNITED UTILITIES WATER PLC,2366678,17/04/2020,99096,4205.96,0,Private Water Analysis,371300,Utilities Water
South Lakeland District Council,http://opendatacommunities.org/id/district-council/south-lakeland,43951,Development Implementation,External Trading Accounts,,Bowness & Windermere Community,,20/04/2020,102555,4447.77,0,Share of water used at Braithwaite Fold,311600,Healthcare Services
South Lakeland District Council,http://opendatacommunities.org/id/district-council/south-lakeland,43951,Support Services,Central Services,http://opendatacommunities.org/def/concept/finance/sercop/objective/102,NORTH WEST EMPLOYERS,,06/04/2020,95123,4488.61,0,Full Members Subs Apriil 2020 to March,261500,HR Training & Conferences
South Lakeland District Council,http://opendatacommunities.org/id/district-council/south-lakeland,43951,Business Support Community Services,Cultural Environmental Regulatory & Planning Services,http://opendatacommunities.org/def/concept/finance/sercop/objective/104,UNITED UTILITIES WATER PLC,2366678,17/04/2020,99097,4533.84,0,Private Water Analysis,371300,Utilities Water
South Lakeland District Council,http://opendatacommunities.org/id/district-council/south-lakeland,43951,Case Management Regulatory,Cultural Environmental Regulatory & Planning Services,,HORIBA UK LTD,2242542,27/04/2020,103995,4685,0,,181811,Environment Technical Equip Measuring
South Lakeland District Council,http://opendatacommunities.org/id/district-council/south-lakeland,43951,Business Support Community Services,Cultural Environmental Regulatory & Planning Services,http://opendatacommunities.org/def/concept/finance/sercop/objective/104,CIVICA UK LTD,1628868,17/04/2020,97522,4711.44,0,FASTSUITE SOFTWARE RENEWAL  01/04/2020,271600,ICT Software Customised & Bespoke
South Lakeland District Council,http://opendatacommunities.org/id/district-council/south-lakeland,43951,Business Support Community Services,Central Services,http://opendatacommunities.org/def/concept/finance/sercop/objective/102,CIVICA UK LTD,1628868,17/04/2020,97522,4711.44,0,FASTSUITE SOFTWARE RENEWAL  01/04/2020,271600,ICT Software Customised & Bespoke
South Lakeland District Council,http://opendatacommunities.org/id/district-council/south-lakeland,43951,Support Services,Cultural Environmental Regulatory & Planning Services,http://opendatacommunities.org/def/concept/finance/sercop/objective/104,LANCASTER CITY COUNCIL,,06/04/2020,95369,4797.24,0,contribution for work carried out by,201900,Financial Services Refund
South Lakeland District Council,http://opendatacommunities.org/id/district-council/south-lakeland,43951,Development Implementation,Central Services,http://opendatacommunities.org/def/concept/finance/sercop/objective/102,Tribe Culture Change Ltd,,06/04/2020,93969,4886.5,0,Health & Safety Support,220000,Health and Safety
South Lakeland District Council,http://opendatacommunities.org/id/district-council/south-lakeland,43951,Support Services,Cultural Environmental Regulatory & Planning Services,http://opendatacommunities.org/def/concept/finance/sercop/objective/104,LAKE DISTRICT NATIONAL PARK AUTHORITY,,03/04/2020,94038,5000,0,SLDC's contribution to Lake District,201700,Financial Services Grants
South Lakeland District Council,http://opendatacommunities.org/id/district-council/south-lakeland,43951,Leisure and Wellbeing,Cultural Environmental Regulatory & Planning Services,http://opendatacommunities.org/def/concept/finance/sercop/objective/104,Ruskin Museum,,06/04/2020,94357,5000,0,Strategic Cultural Partnership funding,201700,Financial Services Grants
South Lakeland District Council,http://opendatacommunities.org/id/district-council/south-lakeland,43951,Business Support Community Services,Cultural Environmental Regulatory & Planning Services,http://opendatacommunities.org/def/concept/finance/sercop/objective/104,Voluntary Action Cumbria,3957858,08/04/2020,95386,5000,0,17-18 funding contribution to ACT.,250000,Housing
South Lakeland District Council,http://opendatacommunities.org/id/district-council/south-lakeland,43951,Case Management Account Mgmt,Central Services,http://opendatacommunities.org/def/concept/finance/sercop/objective/102,CFH Docmail Ltd,1716891,17/04/2020,97506,5000,0,C Tax  Billing (Printing Costs),300000,Mail Services
South Lakeland District Council,http://opendatacommunities.org/id/district-council/south-lakeland,43951,Business Support Community Services,Cultural Environmental Regulatory & Planning Services,http://opendatacommunities.org/def/concept/finance/sercop/objective/104,KIRKBY LONSDALE TOWN COUNCIL,,17/04/2020,101528,5000,0,2017-18 funding contribution for the,908000,Public Bodies Council support services
South Lakeland District Council,http://opendatacommunities.org/id/district-council/south-lakeland,43951,Financial Services,SLDC as Agent,,Arthur J Gallagher Insurance Brokers Lld,108909,22/04/2020,101829,5040,0,Brokerage and other Insurance policies,201800,Financial Services Insurance
South Lakeland District Council,http://opendatacommunities.org/id/district-council/south-lakeland,43951,Case Management Account Mgmt,Central Services,http://opendatacommunities.org/def/concept/finance/sercop/objective/102,CFH Docmail Ltd,1716891,17/04/2020,97506,5181.81,0,C Tax  Billing (Printing Costs),300000,Mail Services
South Lakeland District Council,http://opendatacommunities.org/id/district-council/south-lakeland,43951,Support Services,Cultural Environmental Regulatory & Planning Services,,CUMBRIA TOURISM,3027358,22/04/2020,103157,5200,0,,291400,Arts & Leisure Services Sport & Fitness
South Lakeland District Council,http://opendatacommunities.org/id/district-council/south-lakeland,43951,Support Services,Central Services,http://opendatacommunities.org/def/concept/finance/sercop/objective/102,ANTHONY COLLINS SOLICITORS,OC313432,08/04/2020,96197,5288.5,0,Potential Land Promotion Vehicle,281300,Legal Services Legal Opinion
South Lakeland District Council,http://opendatacommunities.org/id/district-council/south-lakeland,43951,Case Management Account Mgmt,Highways & Transport Services,http://opendatacommunities.org/def/concept/finance/sercop/objective/107,Orbility,,17/04/2020,97510,5334.38,0,Maintenance Agreement for equipment in,351000,Street & Traffic Parking Car Parks
South Lakeland District Council,http://opendatacommunities.org/id/district-council/south-lakeland,43951,Human Resources,Central Services,http://opendatacommunities.org/def/concept/finance/sercop/objective/102,HFX LIMITED,8137794,17/04/2020,97511,5406.38,0,HFX System Maintenance Support Contract,261200,HR Professional & Advisory Services
South Lakeland District Council,http://opendatacommunities.org/id/district-council/south-lakeland,43951,Revenues and Benefits,Central Services,http://opendatacommunities.org/def/concept/finance/sercop/objective/102,JACOBS,,08/04/2020,93830,5610,0,2019 - 20  VAT only,152200,Consultancy Technical & Feasibility
South Lakeland District Council,http://opendatacommunities.org/id/district-council/south-lakeland,43951,ICT Group,Central Services,http://opendatacommunities.org/def/concept/finance/sercop/objective/102,SITEIMPROVE LTD,4932868,17/04/2020,97516,5856.9,0,Siteimprove Contract Number: 70913,271515,ICT Website Development
South Lakeland District Council,http://opendatacommunities.org/id/district-council/south-lakeland,43951,Business Support Community Services,Cultural Environmental Regulatory & Planning Services,http://opendatacommunities.org/def/concept/finance/sercop/objective/104,WINDERMERE TOWN COUNCIL,,17/04/2020,101527,6000,0,2017-18 contribution to Windermere,908000,Public Bodies Council support services
South Lakeland District Council,http://opendatacommunities.org/id/district-council/south-lakeland,43951,Business Support Community Services,Cultural Environmental Regulatory & Planning Services,http://opendatacommunities.org/def/concept/finance/sercop/objective/104,ARNSIDE PARISH COUNCIL,,20/04/2020,101547,6000,0,2017-18 funding contribution to the,908000,Public Bodies Council support services
South Lakeland District Council,http://opendatacommunities.org/id/district-council/south-lakeland,43951,Business Support Community Services,Cultural Environmental Regulatory & Planning Services,http://opendatacommunities.org/def/concept/finance/sercop/objective/104,ALLSTAR BUSINESS SOLUTIONS LTD (NCR),2631112,01/04/2020,95224,6500,0,Fuel to 31/03/20 (est),381600,Vehicle Mgt Leasing
South Lakeland District Council,http://opendatacommunities.org/id/district-council/south-lakeland,43951,Support Services,Cultural Environmental Regulatory & Planning Services,http://opendatacommunities.org/def/concept/finance/sercop/objective/104,MILNTHORPE PARISH COUNCIL,,17/04/2020,97543,7500,0,2019/2020 - Contribution to Milnthorpe,908000,Public Bodies Council support services
South Lakeland District Council,http://opendatacommunities.org/id/district-council/south-lakeland,43951,Development Implementation,Cultural Environmental Regulatory & Planning Services,,CUMBRIA CHAMBER OF COMMERCE,4211364,27/04/2020,103993,7916.5,0,,201700,Financial Services Grants
South Lakeland District Council,http://opendatacommunities.org/id/district-council/south-lakeland,43951,Business Support Community Services,Cultural Environmental Regulatory & Planning Services,http://opendatacommunities.org/def/concept/finance/sercop/objective/104,ULVERSTON TOWN COUNCIL,,17/04/2020,101529,8000,0,2017-18 funding contribution for the,908000,Public Bodies Council support services
South Lakeland District Council,http://opendatacommunities.org/id/district-council/south-lakeland,43951,Business Support Community Services,Cultural Environmental Regulatory & Planning Services,http://opendatacommunities.org/def/concept/finance/sercop/objective/104,GRANGE OVER SANDS TOWN COUNCIL,,17/04/2020,101530,8000,0,2017-18 funding contribution for the,908000,Public Bodies Council support services
South Lakeland District Council,http://opendatacommunities.org/id/district-council/south-lakeland,43951,Financial Services,SLDC as Agent,,Arthur J Gallagher Insurance Brokers Lld,108909,22/04/2020,102088,8671.03,0,Brokerage and other Insurance policies,201800,Financial Services Insurance
South Lakeland District Council,http://opendatacommunities.org/id/district-council/south-lakeland,43951,Development Implementation,Other Items,,CUMBRIA CHAMBER OF COMMERCE,4211364,27/04/2020,103993,8750,0,,201700,Financial Services Grants
South Lakeland District Council,http://opendatacommunities.org/id/district-council/south-lakeland,43951,ICT Group,Central Services,http://opendatacommunities.org/def/concept/finance/sercop/objective/102,GGP Systems Limited,2685491,20/04/2020,102092,9000,0,GGP NGz Maintenance/GGP Licence CSP,270000,Information Communications Technology
South Lakeland District Council,http://opendatacommunities.org/id/district-council/south-lakeland,43951,Case Management Account Mgmt,Central Services,http://opendatacommunities.org/def/concept/finance/sercop/objective/102,TEAM NETSOL LIMITED,3697370,30/03/2020,93549,9143,0,"Becs claims support, maintenance &",151000,Consultancy Business
South Lakeland District Council,http://opendatacommunities.org/id/district-council/south-lakeland,43951,Business Support Community Services,Cultural Environmental Regulatory & Planning Services,http://opendatacommunities.org/def/concept/finance/sercop/objective/104,CIVICA UK LTD,1628868,17/04/2020,97522,9422.87,0,FASTSUITE SOFTWARE RENEWAL  01/04/2020,271600,ICT Software Customised & Bespoke
South Lakeland District Council,http://opendatacommunities.org/id/district-council/south-lakeland,43951,Leisure and Wellbeing,Cultural Environmental Regulatory & Planning Services,http://opendatacommunities.org/def/concept/finance/sercop/objective/104,GRIZEDALE ARTS,3776969,06/04/2020,94358,10000,0,Strategic Cultural Partnership funding,201700,Financial Services Grants
South Lakeland District Council,http://opendatacommunities.org/id/district-council/south-lakeland,43951,Development Implementation,Culture and Related Serv,http://opendatacommunities.org/def/concept/finance/sercop/objective/104,The Coniston Institute,,17/04/2020,101531,10000,0,LIP Grant for Coniston Institute (1st,192110,Facilities Room Hire
South Lakeland District Council,http://opendatacommunities.org/id/district-council/south-lakeland,43951,Support Services,Central Services,,Local Government Association (DD),,01/04/2020,103996,10526.73,0,,908000,Public Bodies Council support services
South Lakeland District Council,http://opendatacommunities.org/id/district-council/south-lakeland,43951,Business Support Community Services,Central Services,,STRAIGHT MANUFACTURING Ltd,1618165,30/04/2020,104105,10549.44,0,,182011,Environment Waste Management Consumables
South Lakeland District Council,http://opendatacommunities.org/id/district-council/south-lakeland,43951,Business Support Community Services,Cultural Environmental Regulatory & Planning Services,http://opendatacommunities.org/def/concept/finance/sercop/objective/104,ALLSTAR BUSINESS SOLUTIONS LTD (NCR),2631112,01/04/2020,95224,11686.08,0,Fuel to 31/03/20 (est),381600,Vehicle Mgt Leasing
South Lakeland District Council,http://opendatacommunities.org/id/district-council/south-lakeland,43951,Policy & Partnerships,Central Services,http://opendatacommunities.org/def/concept/finance/sercop/objective/102,Bloom Procurement Services Ltd,,22/04/2020,97524,12193.62,0,Service Redesign - Information Service,151900,Consultancy Management
South Lakeland District Council,http://opendatacommunities.org/id/district-council/south-lakeland,43951,Support Services,Cultural Environmental Regulatory & Planning Services,http://opendatacommunities.org/def/concept/finance/sercop/objective/104,Ulverston Community Enterprises Ltd,8904327,03/04/2020,94733,13365,0,Grant Agreement 2020/21 (4 x quarterly,201700,Financial Services Grants
South Lakeland District Council,http://opendatacommunities.org/id/district-council/south-lakeland,43951,Leisure and Wellbeing,Cultural Environmental Regulatory & Planning Services,http://opendatacommunities.org/def/concept/finance/sercop/objective/104,THE WORDSWORTH TRUST,3442086,08/04/2020,96205,15000,0,Strategic Cultural Partnership funding,201700,Financial Services Grants
South Lakeland District Council,http://opendatacommunities.org/id/district-council/south-lakeland,43951,Case Management Account Mgmt,Central Services,http://opendatacommunities.org/def/concept/finance/sercop/objective/102,MERITEC LTD,3224622,17/04/2020,95372,15984,0,Remote Revenues Processing 666 hrs (37,391200,Construction Engineering
South Lakeland District Council,http://opendatacommunities.org/id/district-council/south-lakeland,43951,Case Management Account Mgmt,Central Services,http://opendatacommunities.org/def/concept/finance/sercop/objective/102,CFH Docmail Ltd,1716891,17/04/2020,97505,17001.12,0,Direct Debit CTAX & NNDR Printing,300000,Mail Services
South Lakeland District Council,http://opendatacommunities.org/id/district-council/south-lakeland,43951,Support Services,Planning and Development,,KIRKBY LONSDALE TOWN COUNCIL,,17/04/2020,101543,20681.59,0,CIL - Neighbourhood Funding Portion,908000,Public Bodies Council support services
South Lakeland District Council,http://opendatacommunities.org/id/district-council/south-lakeland,43951,Case Management Account Mgmt,Central Services,,CAPITA BUSINESS SERVICES LTD,2299747,20/04/2020,102558,21300.49,0,,261500,HR Training & Conferences
South Lakeland District Council,http://opendatacommunities.org/id/district-council/south-lakeland,43951,Leisure and Wellbeing,Cultural Environmental Regulatory & Planning Services,http://opendatacommunities.org/def/concept/finance/sercop/objective/104,LAKELAND ARTS,8162578,06/04/2020,94360,25000,0,Strategic Cultural Partnership funding,201700,Financial Services Grants
South Lakeland District Council,http://opendatacommunities.org/id/district-council/south-lakeland,43951,Support Services,Central Services,,Cumbria Action for Sustainability,6492907,30/04/2020,103968,50000,0,,201700,Financial Services Grants
South Lakeland District Council,http://opendatacommunities.org/id/district-council/south-lakeland,43951,Support Services,Planning and Development,,ULVERSTON TOWN COUNCIL,,17/04/2020,101545,54780.56,0,CIL - Neighbourhood Funding Portion,908000,Public Bodies Council support services
